Workbook

Sheet KarmaYem
B1: EN DÜŞÜK MALİYETLİ KARMA YEM | E1: Coşkun & İnal & İnal | H1: =TODAY() -> 2024-11-12 | AB1: Adres | AC1: Rasyonlar | AD1: Rasyon Kayıt Bölümü
B2: HAZIRLAMA PROGRAMI | C2: MİKTAR | D2: Fiyat | AB2: AE | AD2: Diğer bilgiler | AE2: 1 | AF2: 2 | AG2: 3 | AH2: 4 | AI2: 5 | AJ2: 6 | AK2: 7 | AL2: 8 | AM2: 9 | AN2: 10 | AO2: =AN2+1 -> 11 | AP2: =AO2+1 -> 12 | AQ2: 13 | AR2: 14 | AS2: 15 | AT2: 16 | AU2: 17 | AV2: 18 | AW2: 19 | AX2: 20 | AY2: 21 | AZ2: 22 | BA2: 23 | BB2: 24 | BC2: 25 | BD2: 26 | BE2: 27 | BF2: 28 | BG2: 29 | BH2: 30
B3: VERİLECEK YEMLER | C3: =IF(C4<100*0.9999999,"EKSİK",IF(C4>100*1.00000001,"FAZLA","TAMAM")) -> TAMAM | D3: ₺/kg | E3: Yemler için | H3: İHTİYAÇ | O3: Selçuk Üniversitesi Veteriner Fakültesi Rasyon Hazırlama Programları | AB3: AF | AD3: Rasyonun Adı :
C4: =SUM(Rapor!W5:W31) -> 100 | D4: =(C5*D5+C6*D6+C7*D7+C8*D8+C9*D9+C10*D10+C11*D11+C12*D12+C13*D13+C14*D14+C15*D15+C16*D16+C17*D17+C18*D18+C19*D19+C20*D20+C21*D21+C22*D22+C23*D23+C24*D24+C25*D25+C26*D26+C27*D27+C28*D28+C29*D29+C30*D30+C31*D31)/100 -> 8.990162515 | E4: En az | F4: En çok | G4: BESİN MADDESİ | H4: En az | I4: En çok | J4: RASYON | K4: SONUÇ | L4: KM'de | AB4: AG | AD4: Rasyonun hazırlandığı tarih : | CB4: Mikser
A5: 1 | B5: MISIR, 3100 | C5: 41.75884838 | D5: 9.5 | E5: 0 | F5: 70 | G5: =Rapor!G4 -> KM, % | H5: 88 | J5: =Rapor!J4 -> 89.03382519 | AB5: AH | AD5: Hayvan sahibinin adı soyadı : | CA5: 10 | CB5: 60.27366449 | CC5: 1205.47
A6: 1 | B6: ARPA | C6: 40 | D6: 8.5 | E6: 0 | F6: 60 | G6: =Rapor!G5 -> HP, % | H6: 12 | I6: =H6*1.005 -> 12.06 | J6: =Rapor!J5 -> 12 | K6: =Rapor!L5 -> TAMAM | L6: =Rapor!K5 -> 13.47802364 | O6: Fİ & Şİ & BC | AB6: AI | AD6: Rasyonu Hazırlayanın Adı Soyadı : | CA6: 10 | CB6: 14.69012953 | CC6: 293.8
A7: 1 | B7: BUĞDAY KEPEĞİ, KABA | C7: 10.61700358 | D7: 7 | E7: 0 | F7: 15 | G7: =Rapor!G6 -> ME, Mcal/kg | H7: 2.75 | I7: =H7*1.005 -> 2.76375 | J7: =Rapor!J6 -> 2.750000002 | K7: =Rapor!L6 -> TAMAM | L7: =Rapor!K6 -> 3.088713751 | AB7: AJ | AD7: Adresi : | CA7: 30 | CB7: 0 | CC7: 0
A8: 2 | B8: SOYA KÜSPESİ, SOLVENT, 44 HP | C8: 4.498123237 | D8: 17 | E8: 0 | F8: 40 | G8: =Rapor!G7 -> Ca, % | H8: 0.6 | I8: 1.6 | J8: =Rapor!J7 -> 0.861944144 | K8: =Rapor!L7 -> TAMAM | L8: =Rapor!K7 -> 0.9681086285 | AB8: AK | AD8: Telefonu : | CA8: 20 | CB8: 22.07183491 | CC8: 441.44
A9: 3 | B9: MERMER TOZU | C9: 1.912069218 | D9: 2 | E9: 0 | F9: 7 | G9: =Rapor!G8 -> P, % | H9: 0.4 | J9: =Rapor!J8 -> 0.4009999999 | K9: =Rapor!L8 -> TAMAM | L9: =Rapor!K8 -> 0.4503906229 | AB9: AL | AD9: Hayvan Tanımlama Bilgisi Girişi | CA9: 13.26992736 | CB9: 1.609266146 | CC9: 32.19
A10: 3 | B10: TUZ | C10: 0.9639555877 | D10: 1.5 | E10: 0.25 | F10: 1 | G10: =Rapor!G9 -> Na, % | H10: 0.1 | I10: 0.4 | J10: =Rapor!J9 -> 0.401 | K10: =Rapor!L9 -> TAMAM | L10: =Rapor!K9 -> 0.450390623 | AB10: AM | AD10: Hayvan Türü : | CA10: 2.598971433 | CB10: 0.6661299065 | CC10: 13.32
A11: 3 | B11: VİTAMİN-MİNERAL KARMASI | C11: 0.25 | D11: 25 | E11: 0.25 | F11: 0.25 | G11: =Rapor!G10 -> HS, % | H11: 1.2 | I11: 12 | J11: =Rapor!J10 -> 4.326982252 | K11: =Rapor!L10 -> TAMAM | L11: =Rapor!K10 -> 4.859930754 | AB11: AN | AD11: Hayvan / Yem Tipi : | CA11: 1 | CB11: 0.438975017 | CC11: 8.78
A12: 3 | B12: DİKALSİYUM FOSFAT (DCP) | C12: 0 | D12: 35 | E12: 0 | F12: 3 | G12: =Rapor!G11 -> HK, % | I12: 9 | J12: =Rapor!J11 -> 5.357554637 | K12: =Rapor!L11 -> TAMAM | L12: =Rapor!K11 -> 6.017437334 | N12: Hayvanın türü : | O12: SIĞIR | AB12: AO | CA12: 0.35 | CB12: 0.25 | CC12: 5
C13: 0 | E13: 0 | F13: 0 | G13: =Rapor!G12 -> HY, % | J13: =Rapor!J12 -> 2.809116529 | K13: =Rapor!L12 ->  | L13: =Rapor!K12 -> 3.15511158 | N13: Karma yem adı : | O13: DÜVE YEMİ 1 | AB13: AP | AD13: Yemlerin KODU | CA13: 0 | CB13: 0 | CC13: 0
C14: 0 | E14: 0 | F14: 0 | G14: =Rapor!G13 -> NDF, % | J14: =Rapor!J13 -> 16.00812119 | L14: =Rapor!K13 -> 17.97981964 | AB14: AQ | CA14: 0 | CB14: 0 | CC14: 0
C15: 0 | E15: 0 | F15: 0 | G15: =Rapor!G14 -> ADF, % | J15: =Rapor!J14 -> 5.687649554 | L15: =Rapor!K14 -> 6.388189591 | AB15: AR | CA15: 0 | CB15: 0 | CC15: 0
C16: 0 | E16: 0 | F16: 0 | G16: =Rapor!G15 -> Bypass Prot,% HP | J16: =Rapor!J15 -> 26.12242984 | L16: =Rapor!K15 -> 29.3398939 | AB16: AS | CA16: 0 | CB16: 0 | CC16: 0
C17: 0 | E17: 0 | F17: 0 | G17: =Rapor!G16 -> Nişasta, % | J17: =Rapor!J16 -> 50.11223871 | L17: =Rapor!K16 -> 56.2844948 | AB17: AT | CA17: 0 | CB17: 0 | CC17: 0
C18: 0 | E18: 0 | F18: 0 | G18: =Rapor!G17 -> TSBM, % | J18: =Rapor!J17 -> 71.62309115 | L18: =Rapor!K17 -> 80.4448096 | AB18: AU | CA18: 0 | CB18: 0 | CC18: 0
C19: 0 | E19: 0 | F19: 0 | AB19: AV | CA19: 0 | CB19: 0 | CC19: 0
C20: 0 | E20: 0 | F20: 0 | G20: Hayvan Türü : | I20: KOYUN | AB20: AW | CA20: 0 | CB20: 0 | CC20: 0
C21: 0 | E21: 0 | F21: 0 | G21: Hayvan / Yem Tipi : | I21: TOKLU BESİ YEMİ | AB21: AX | CA21: 0 | CB21: 0 | CC21: 0
C22: 0 | E22: 0 | F22: 0 | N22: Yem maddesi | O22: % | P22: Mikser | AB22: AY | CA22: 0 | CB22: 0 | CC22: 0
C23: 0 | E23: 0 | F23: 0 | N23: MISIR, 3100 | O23: 47.42158486 | Q23: Besin Mad. | R23: İhtiyaç | S23: =J4 -> RASYON | T23: =L4 -> KM'de | U23: =K4 -> SONUÇ | AB23: AZ | CA23: 0 | CB23: 0 | CC23: 0
C24: 0 | E24: 0 | F24: 0 | N24: BUĞDAY, ELEK ALTI | O24: 28.33020495 | Q24: KM, en az % | R24: =H5 -> 88 | S24: =J5 -> 89.03382519 | AB24: BA | CA24: 0 | CB24: 0 | CC24: 0
C25: 0 | E25: 0 | F25: 0 | Q25: HP, en az % | R25: =H6 -> 12 | S25: =J6 -> 12 | T25: =L6 -> 13.47802364 | U25: =K6 -> TAMAM | AB25: BB | CA25: 0 | CB25: 0 | CC25: 0
C26: 0 | E26: 0 | F26: 0 | Q26: ME, en az Mcal/kg | R26: =H7 -> 2.75 | S26: =J7 -> 2.750000002 | T26: =L7 -> 3.088713751 | U26: =K7 -> TAMAM | AB26: BC | CA26: 0 | CB26: 0 | CC26: 0
C27: 0 | E27: 0 | F27: 0 | Q27: Ca, en az % | R27: =H8 -> 0.6 | S27: =J8 -> 0.861944144 | T27: =L8 -> 0.9681086285 | U27: =K8 -> TAMAM | AB27: BD | CA27: 0 | CB27: 0 | CC27: 0
C28: 0 | E28: 0 | F28: 0 | Q28: Ca, en çok % | R28: =I8 -> 1.6 | AB28: BE | CA28: 0 | CB28: 0 | CC28: 0
C29: 0 | E29: 0 | F29: 0 | Q29: P,enaz % | R29: =H9 -> 0.4 | S29: =J9 -> 0.4009999999 | T29: =L9 -> 0.4503906229 | U29: =K9 -> TAMAM | AB29: BF | CA29: 0 | CB29: 0 | CC29: 0
C30: 0 | E30: 0 | F30: 0 | Q30: Na, en az % | R30: =H10 -> 0.1 | S30: =J10 -> 0.401 | T30: =L10 -> 0.450390623 | U30: =K10 -> TAMAM | AB30: BG | CA30: 0 | CB30: 0 | CC30: 0
C31: 0 | E31: 0 | F31: 0 | N31: SOYA KÜSPESİ, SOLVENT, 48 HP | O31: 21.51266461 | Q31: Na, en çok % | R31: =I10 -> 0.4 | AB31: BH | CA31: 0 | CB31: 0 | CC31: 0
Q32: HS, en çok % | R32: =I11 -> 12 | S32: =J11 -> 4.326982252 | T32: =L11 -> 4.859930754 | U32: =K11 -> TAMAM
Q33: HK, ençok % | R33: =I12 -> 9 | S33: 5.357554637 | T33: 6.017437334 | U33: TAMAM
Q34: HY, % | S34: 2.809116529 | T34: 3.15511158
N35: KİREÇTAŞI | O35: 1.675296758 | Q35: NDF, % | R35: =H11 -> 1.2 | S35: 16.00812119 | T35: 17.97981964 | U35: 0
N36: DİKALSİYUM FOSFAT (DCP) | O36: 0.7832504391 | Q36: ADF, % | R36: =H14 -> 0 | S36: 5.687649554 | T36: 6.388189591 | U36: 0
N37: TUZ | O37: 0.17699861 | Q37: Bypass Prot,% HP | S37: 26.12242984 | T37: 29.3398939 | U37: 0
N38: VİTAMİN-MİNERAL KARMASI | O38: 0.1 | Q38: Nişasta, % | S38: 50.11223871 | T38: 56.2844948 | U38: 0
Q39: TSBM, % | S39: 71.62309115 | T39: 80.4448096 | U39: 0
AD40: Yemlerin ADI
S42: 12.04.2016
S43: Hazırlayan
S44: Prof.Dr. Fatma İNAL
N49: Toplam | O49: =SUM(O23:O48) -> 100.0000002 | P49: =SUM(P23:P48) -> 0
N51: Kurum Adı
N52: S.Ü. VETERİNER FAKÜLTESİ
AD67: Yemlerin MİKTARI
AD94: Fiyat
AD121: En az
AD148: En çok

Sheet Rapor
B1: EN DÜŞÜK MALİYETLİ KARMA YEM ÇÖZÜMÜ | H1: =TODAY() -> 2024-11-12 | BL1: DEĞERLER KURU MADDE ESASINA GÖRE VERİLMİŞTİR. | DA1: Seçilen Yemler
D2: Fiyat | H2: İHTİYAÇ | AV2: HAYVAN | AW2: KM,enaz | AX2: HP,enaz | AY2: ME,enaz | AZ2: Ca,enaz | BA2: Ca,ençok | BB2: P,enaz | BC2: Na,enaz | BD2: Na,ençok | BE2: HS,ençok | BF2: NDF,% | BG2: ADF,% | BH2: HK,ençok | BJ2: YEMLER | BK2: 2 | BL2: =BK2+1 -> 3 | BM2: =BL2+1 -> 4 | BN2: 5 | BO2: 6 | BP2: 7 | BQ2: 8 | BR2: 9 | BS2: 10 | BT2: 11 | BU2: 12 | BV2: 13 | BW2: 14 | BX2: 15 | BY2: 16 | BZ2: =BY2+1 -> 17 | CA2: =BZ2+1 -> 18 | DA2: Toplu yem seçimi için kullanılır
B3: VERİLECEK YEMLER | D3: TL/kg | E3: Yemler için | G3: BESİN MADDESİ | H3: En az | I3: En çok | J3: RASYON | K3: KM'de | L3: SONUÇ | V3: VERİLECEK YEMLER | W3: =SUM(W5:W31) -> 100 | AJ3: =SUM(AJ5:AJ31) -> 89.03382519 | AK3: 12 | AL3: 2.750000002 | AM3: 0.861944144 | AN3: 0.4009999999 | AO3: 0.401 | AP3: 4.326982252 | AQ3: 16.00812119 | AR3: 5.687649554 | AS3: 5.357554637 | AT3: 26.12242984 | AV3: KOYUN | BJ3: ENERJİ KAYNAKLARI | BK3: KM, % | BL3: HP, % | BM3: ME, Mcal/kg | BN3: Ca, % | BO3: P, % | BP3: Na,% | BQ3: HS, % | BR3: NDF,% | BS3: ADF,% | BT3: HK, % | BU3: Fiyat,TL | BV3: Enaz | BW3: Ençok | BX3: RUP,%HP'de | BY3: HY, % | BZ3: Nişasta,% | CA3: TSBM,%
C4: MİKTAR | D4: =KarmaYem!D4 -> 8.990162515 | E4: En az | F4: En çok | G4: =AJ4 -> KM, % | H4: =KarmaYem!H5 -> 88 | J4: =AJ3 -> 89.03382519 | W4: MİKTAR | X4: KM | Y4: HP | Z4: ME | AA4: Ca | AB4: P | AC4: Na | AD4: HS | AE4: NDF | AF4: ADF | AG4: HK | AH4: RUP | AJ4: KM, % | AK4: HP, % | AL4: ME, Mcal/kg | AM4: Ca, % | AN4: P, % | AO4: Na, % | AP4: HS, % | AQ4: NDF, % | AR4: ADF, % | AS4: HK, % | AT4: RUP | AV4: KUZU BAŞLANGIÇ YEMİ | AW4: 88 | AX4: 18 | AY4: 2.8 | AZ4: 0.8 | BA4: 2 | BB4: 0.5 | BC4: 0.1 | BD4: 0.4 | BE4: 11 | BH4: 8 | BJ4: ARPA | BK4: 88 | BL4: 13.5 | BM4: 3.11 | BN4: 0.05 | BO4: 0.38 | BP4: 0.02 | BQ4: 5.7 | BR4: 20.8 | BS4: 7.2 | BT4: 2.9 | BU4: 8.5 | BV4: 0 | BW4: 60 | BX4: 20.9 | BY4: 2.1 | BZ4: 64 | CA4: 82.7
A5: =KarmaYem!A5 -> 1 | B5: =KarmaYem!B5 -> MISIR, 3100 | C5: =KarmaYem!C5 -> 41.75884838 | D5: =KarmaYem!D5 -> 9.5 | E5: =KarmaYem!E5 -> 0 | F5: =KarmaYem!F5 -> 70 | G5: =AK4 -> HP, % | H5: =KarmaYem!H6 -> 12 | I5: =KarmaYem!I6 -> 12.06 | J5: =AK3 -> 12 | K5: =(100*J5)/$J$4 -> 13.47802364 | L5: =X34 -> TAMAM | V5: =KarmaYem!B5 -> MISIR, 3100 | W5: =IF(B5=0,0,C5) -> 41.75884838 | X5: =IF($V5=0,0,VLOOKUP($V5,$BJ$4:$BY$226,BK$2,FALSE)) -> 89 | Y5: =IF($V5=0,0,VLOOKUP($V5,$BJ$4:$BY$226,BL$2,FALSE)) -> 10 | Z5: =IF($V5=0,0,VLOOKUP($V5,$BJ$4:$BY$226,BM$2,FALSE)) -> 3.47 | AA5: =IF($V5=0,0,VLOOKUP($V5,$BJ$4:$BY$226,BN$2,FALSE)) -> 0.3 | AB5: =IF($V5=0,0,VLOOKUP($V5,$BJ$4:$BY$226,BO$2,FALSE)) -> 0.29 | AC5: =IF($V5=0,0,VLOOKUP($V5,$BJ$4:$BY$226,BP$2,FALSE)) -> 0.02 | AD5: =IF($V5=0,0,VLOOKUP($V5,$BJ$4:$BY$226,BQ$2,FALSE)) -> 2.6 | AE5: =IF($V5=0,0,VLOOKUP($V5,$BJ$4:$BY$226,BR$2,FALSE)) -> 9.5 | AF5: =IF($V5=0,0,VLOOKUP($V5,$BJ$4:$BY$226,BS$2,FALSE)) -> 3.4 | AG5: =IF($V5=0,0,VLOOKUP($V5,$BJ$4:$BY$226,BT$2,FALSE)) -> 1.5 | AH5: =IF($V5=0,0,VLOOKUP($V5,$BJ$4:$BY$226,BX$2,FALSE)) -> 42.15 | AJ5: =IF($V5=0,0,W5*X5/100) -> 37.16537506 | AK5: =IF($V5=0,0,$AJ5*Y5/100) -> 3.716537506 | AL5: =IF($V5=0,0,$AJ5*Z5/100) -> 1.289638514 | AM5: =IF($V5=0,0,$AJ5*AA5/100) -> 0.1114961252 | AN5: =IF($V5=0,0,$AJ5*AB5/100) -> 0.1077795877 | AO5: =IF($V5=0,0,$AJ5*AC5/100) -> 0.007433075011 | AP5: =IF($V5=0,0,$AJ5*AD5/100) -> 0.9662997514 | AQ5: =IF($V5=0,0,$AJ5*AE5/100) -> 3.53071063 | AR5: =IF($V5=0,0,$AJ5*AF5/100) -> 1.263622752 | AS5: =IF($V5=0,0,$AJ5*AG5/100) -> 0.5574806258 | AT5: =IF($V5=0,0,$AJ5*AH5/100) -> 15.66520559 | AV5: KUZU BÜYÜTME YEMİ | AW5: 88 | AX5: 16 | AY5: 2.5 | AZ5: 0.8 | BA5: 2 | BB5: 0.5 | BC5: 0.1 | BD5: 0.4 | BE5: 10 | BH5: 10 | BJ5: ARPA MALT ÇİLİ | BK5: 93 | BL5: 24.6 | BM5: 2.69 | BN5: 0.19 | BO5: 0.68 | BP5: 0.02 | BQ5: 15.3 | BR5: 47 | BS5: 21.8 | BT5: 7.4 | BU5: 9 | BV5: 0 | BW5: 20 | BX5: 24.3 | BY5: 2.3 | BZ5: 17 | CA5: 66.4
A6: =KarmaYem!A6 -> 1 | B6: =KarmaYem!B6 -> ARPA | C6: =KarmaYem!C6 -> 40 | D6: =KarmaYem!D6 -> 8.5 | E6: =KarmaYem!E6 -> 0 | F6: =KarmaYem!F6 -> 60 | G6: =AL4 -> ME, Mcal/kg | H6: =KarmaYem!H7 -> 2.75 | I6: =KarmaYem!I7 -> 2.76375 | J6: =AL3 -> 2.750000002 | K6: 3.088713751 | L6: TAMAM | V6: =KarmaYem!B6 -> ARPA | W6: =IF(B6=0,0,C6) -> 40 | X6: 88 | Y6: 13.5 | Z6: 3.11 | AA6: 0.05 | AB6: 0.38 | AC6: 0.02 | AD6: 5.7 | AE6: 20.8 | AF6: 7.2 | AG6: 2.9 | AH6: 20.9 | AJ6: 35.2 | AK6: 4.752 | AL6: 1.09472 | AM6: 0.0176 | AN6: 0.13376 | AO6: 0.00704 | AP6: 2.0064 | AQ6: 7.3216 | AR6: 2.5344 | AS6: 1.0208 | AT6: =IF($V6=0,0,$AJ6*AH6/100) -> 7.3568 | AV6: KUZU BESİ YEMİ | AW6: 88 | AX6: 15 | AY6: 2.8 | AZ6: 0.6 | BA6: 1.6 | BB6: 0.4 | BC6: 0.1 | BD6: 0.4 | BE6: 12 | BH6: 9 | BJ6: ARPA, SAHİL | BK6: 89 | BL6: 10.8 | BM6: 3.18 | BN6: 0.06 | BO6: 0.39 | BP6: 0.03 | BQ6: 7.1 | BR6: 19 | BS6: 12.1 | BT6: 2.7 | BU6: 8.5 | BV6: 0 | BW6: 60 | BX6: 20.9 | BY6: 2.1 | BZ6: 55 | CA6: 82
A7: =KarmaYem!A7 -> 1 | B7: =KarmaYem!B7 -> BUĞDAY KEPEĞİ, KABA | C7: =KarmaYem!C7 -> 10.61700358 | D7: =KarmaYem!D7 -> 7 | E7: =KarmaYem!E7 -> 0 | F7: =KarmaYem!F7 -> 15 | G7: =AM4 -> Ca, % | H7: =KarmaYem!H8 -> 0.6 | I7: =KarmaYem!I8 -> 1.6 | J7: =AM3 -> 0.861944144 | K7: 0.9681086285 | L7: TAMAM | V7: =KarmaYem!B7 -> BUĞDAY KEPEĞİ, KABA | W7: 10.61700358 | X7: 89 | Y7: 17.1 | Z7: 2.57 | AA7: 0.13 | AB7: 1.38 | AC7: 0.06 | AD7: 11.3 | AE7: 45.9 | AF7: 13.5 | AG7: 6.7 | AH7: 17.65 | AJ7: 9.449133186 | AK7: 1.615801775 | AL7: 0.2428427229 | AM7: 0.01228387314 | AN7: 0.130398038 | AO7: 0.005669479912 | AP7: 1.06775205 | AQ7: 4.337152133 | AR7: 1.27563298 | AS7: 0.6330919235 | AT7: 1.667772007 | AV7: TOKLU BESİ YEMİ | AW7: 88 | AX7: 12 | AY7: 2.75 | AZ7: 0.6 | BA7: 1.6 | BB7: 0.4 | BC7: 0.1 | BD7: 0.4 | BE7: 12 | BH7: 9 | BJ7: ARPA, ZAYIF | BK7: 88 | BL7: 11.7 | BM7: 2.94 | BN7: 0.05 | BO7: 0.38 | BP7: 0.03 | BQ7: 11.4 | BR7: 19 | BS7: 12.1 | BT7: 2.7 | BU7: 8 | BV7: 0 | BW7: 60 | BX7: 20.9 | BY7: 2.1 | BZ7: 55 | CA7: 82
A8: =KarmaYem!A8 -> 2 | B8: =KarmaYem!B8 -> SOYA KÜSPESİ, SOLVENT, 44 HP | C8: =KarmaYem!C8 -> 4.498123237 | D8: =KarmaYem!D8 -> 17 | E8: =KarmaYem!E8 -> 0 | F8: =KarmaYem!F8 -> 40 | G8: =AN4 -> P, % | H8: =KarmaYem!H9 -> 0.4 | J8: =AN3 -> 0.4009999999 | K8: 0.4503906229 | L8: TAMAM | V8: =KarmaYem!B8 -> SOYA KÜSPESİ, SOLVENT, 44 HP | W8: 4.498123237 | X8: 91 | Y8: 46.8 | Z8: 3 | AA8: 0.32 | AB8: 0.71 | AC8: 0.04 | AD8: 7 | AE8: 20 | AF8: 15 | AG8: 6.6 | AH8: 35 | AJ8: 4.093292145 | AK8: 1.915660724 | AL8: 0.1227987644 | AM8: 0.01309853486 | AN8: 0.02906237423 | AO8: 0.001637316858 | AP8: 0.2865304502 | AQ8: 0.818658429 | AR8: 0.6139938218 | AS8: 0.2701572816 | AT8: 1.432652251 | AV8: KOYUN SÜT YEMİ | AW8: 88 | AX8: 13 | AY8: 2.4 | AZ8: 0.6 | BA8: 1.2 | BB8: 0.4 | BC8: 0.3 | BD8: 0.6 | BE8: 14 | BH8: 9 | BJ8: AYÇİÇEĞİ TOHUMU | BK8: 91.8 | BL8: 19.2 | BM8: 4.71 | BN8: 0.71 | BO8: 0.51 | BP8: 0.01 | BQ8: 24.1 | BR8: 24 | BS8: 16.7 | BT8: 5.1 | BU8: 45 | BV8: 0 | BW8: 10 | BX8: 9.55 | BY8: 41.9 | BZ8: 1.3 | CA8: 122.3
A9: =KarmaYem!A9 -> 3 | B9: =KarmaYem!B9 -> MERMER TOZU | C9: =KarmaYem!C9 -> 1.912069218 | D9: =KarmaYem!D9 -> 2 | E9: =KarmaYem!E9 -> 0 | F9: =KarmaYem!F9 -> 7 | G9: =AO4 -> Na, % | H9: =KarmaYem!H10 -> 0.1 | I9: =KarmaYem!I10 -> 0.4 | J9: =AO3 -> 0.401 | K9: 0.450390623 | L9: TAMAM | V9: =KarmaYem!B9 -> MERMER TOZU | W9: 1.912069218 | X9: 100 | Y9: 0 | Z9: 0 | AA9: 37 | AB9: 0 | AC9: 0 | AD9: =IF($V9=0,0,VLOOKUP($V9,$BJ$4:$BY$226,BQ$2,FALSE)) -> 0 | AE9: 0 | AF9: 0 | AG9: 100 | AH9: 0 | AJ9: 1.912069218 | AK9: 0 | AL9: 0 | AM9: 0.7074656108 | AN9: 0 | AO9: 0 | AP9: =IF($V9=0,0,$AJ9*AD9/100) -> 0 | AQ9: 0 | AR9: 0 | AS9: 1.912069218 | AT9: 0 | AV9: KEÇİ SÜT YEMİ | AW9: 88 | AX9: 16 | AY9: 2.5 | AZ9: 0.75 | BA9: 1.2 | BB9: 0.4 | BC9: 0.3 | BD9: 0.6 | BE9: 16 | BH9: 9 | BJ9: BADEM KABUKLARI, ÖĞÜTÜLMÜŞ | BK9: 92 | BL9: 4.8 | BM9: 1.92 | BN9: 0.2 | BO9: 0.14 | BP9: 0.04 | BQ9: 43.1 | BR9: 36.8 | BS9: 28.7 | BT9: 6.1 | BU9: 3 | BV9: 0 | BW9: 5 | BX9: 53.15 | BY9: 2.9 | BZ9: 7.4 | CA9: 55
A10: =KarmaYem!A10 -> 3 | B10: =KarmaYem!B10 -> TUZ | C10: =KarmaYem!C10 -> 0.9639555877 | D10: =KarmaYem!D10 -> 1.5 | E10: =KarmaYem!E10 -> 0.25 | F10: =KarmaYem!F10 -> 1 | G10: =AP4 -> HS, % | H10: =KarmaYem!H11 -> 1.2 | I10: =KarmaYem!I11 -> 12 | J10: =AP3 -> 4.326982252 | K10: 4.859930754 | L10: TAMAM | V10: =KarmaYem!B10 -> TUZ | W10: 0.9639555877 | X10: 100 | Y10: 0 | Z10: 0 | AA10: 0 | AB10: 0 | AC10: 39.34 | AD10: 0 | AE10: 0 | AF10: 0 | AG10: 100 | AH10: 0 | AJ10: 0.9639555877 | AK10: 0 | AL10: 0 | AM10: 0 | AN10: 0 | AO10: 0.3792201282 | AP10: 0 | AQ10: 0 | AR10: 0 | AS10: 0.9639555877 | AT10: 0 | BJ10: BAKLA | BK10: 89 | BL10: 24.7 | BM10: 2.98 | BN10: 0.12 | BO10: 0.45 | BP10: 0.01 | BQ10: 4.7 | BR10: 13.7 | BS10: 9.7 | BT10: 4 | BU10: 55 | BV10: 0 | BW10: 15 | BX10: 25 | BY10: 1.2 | BZ10: 41 | CA10: 84.1 | DA10: MERMER TOZU
A11: =KarmaYem!A11 -> 3 | B11: =KarmaYem!B11 -> VİTAMİN-MİNERAL KARMASI | C11: =KarmaYem!C11 -> 0.25 | D11: =KarmaYem!D11 -> 25 | E11: =KarmaYem!E11 -> 0.25 | F11: =KarmaYem!F11 -> 0.25 | G11: =AS4 -> HK, % | I11: =KarmaYem!I12 -> 9 | J11: =AS3 -> 5.357554637 | K11: =(100*J11)/$J$4 -> 6.017437334 | L11: =X40 -> TAMAM | V11: =KarmaYem!B11 -> VİTAMİN-MİNERAL KARMASI | W11: 0.25 | X11: 100 | Y11: 0 | Z11: 0 | AA11: 0 | AB11: 0 | AC11: 0 | AD11: 0 | AE11: 0 | AF11: 0 | AG11: 0 | AH11: 0 | AJ11: 0.25 | AK11: 0 | AL11: 0 | AM11: 0 | AN11: 0 | AO11: 0 | AP11: 0 | AQ11: 0 | AR11: 0 | AS11: 0 | AT11: 0 | BJ11: BEZELYE KABUKLARI | BK11: 90 | BL11: 12.1 | BM11: 2.45 | BN11: 0.75 | BO11: 0.14 | BP11: 0 | BQ11: 41.7 | BR11: 0 | BS11: 0 | BT11: 3.5 | BU11: 6 | BV11: 0 | BW11: 10 | BX11: 22 | BY11: 0.6 | CA11: 82
A12: =KarmaYem!A12 -> 3 | B12: =KarmaYem!B12 -> DİKALSİYUM FOSFAT (DCP) | C12: =KarmaYem!C12 -> 0 | D12: =KarmaYem!D12 -> 35 | E12: =KarmaYem!E12 -> 0 | F12: =KarmaYem!F12 -> 3 | G12: =AL34 -> HY, % | H12: =KarmaYem!H13 -> 0 | I12: =KarmaYem!I13 -> 0 | J12: =AM33 -> 2.809116529 | K12: =(100*J12)/$J$4 -> 3.15511158 | L12: =X41 ->  | V12: =KarmaYem!B12 -> DİKALSİYUM FOSFAT (DCP) | W12: 0 | X12: 100 | Y12: 0 | Z12: 0 | AA12: 24 | AB12: 18 | AC12: 0.03 | AD12: 0 | AE12: 0 | AF12: 0 | AG12: 100 | AH12: 0 | AJ12: 0 | AK12: 0 | AL12: 0 | AM12: 0 | AN12: 0 | AO12: 0 | AP12: 0 | AQ12: 0 | AR12: 0 | AS12: 0 | AT12: 0 | BJ12: BEZELYE, YEMLİK | BK12: 91 | BL12: 25.4 | BM12: 3.25 | BN12: 0.17 | BO12: 0.41 | BP12: 0.04 | BQ12: 6.5 | BR12: 12.7 | BS12: 7.2 | BT12: 3.1 | BU12: 20 | BV12: 0 | BW12: 20 | BX12: 22 | BY12: 1.4 | BZ12: 42.4 | CA12: 82.2
A13: =KarmaYem!A13 -> 0 | B13: =KarmaYem!B13 -> 0 | C13: =KarmaYem!C13 -> 0 | D13: =KarmaYem!D13 -> 0 | E13: =KarmaYem!E13 -> 0 | F13: =KarmaYem!F13 -> 0 | G13: =AQ4 -> NDF, % | J13: =AQ3 -> 16.00812119 | K13: 17.97981964 | V13: =KarmaYem!B13 -> 0 | W13: 0 | X13: 0 | Y13: 0 | Z13: 0 | AA13: 0 | AB13: 0 | AC13: 0 | AD13: 0 | AE13: 0 | AF13: 0 | AG13: 0 | AH13: 0 | AJ13: 0 | AK13: 0 | AL13: 0 | AM13: 0 | AN13: 0 | AO13: 0 | AP13: 0 | AQ13: 0 | AR13: 0 | AS13: 0 | AT13: 0 | BJ13: BIÇKI TOZU | BK13: 90 | BL13: 0.3 | BM13: 1.16 | BN13: 0 | BO13: 0 | BP13: 0 | BQ13: 79.4 | BR13: 94.39 | BS13: 83.04 | BT13: 0.8 | BU13: 8 | BV13: 0 | BW13: 2 | BX13: 80 | BY13: 0 | DA13: TUZ
A14: =KarmaYem!A14 -> 0 | B14: =KarmaYem!B14 -> 0 | C14: =KarmaYem!C14 -> 0 | D14: =KarmaYem!D14 -> 0 | E14: =KarmaYem!E14 -> 0 | F14: =KarmaYem!F14 -> 0 | G14: =AR4 -> ADF, % | J14: =AR3 -> 5.687649554 | K14: 6.388189591 | V14: =KarmaYem!B14 -> 0 | W14: 0 | X14: 0 | Y14: 0 | Z14: 0 | AA14: 0 | AB14: 0 | AC14: 0 | AD14: 0 | AE14: 0 | AF14: 0 | AG14: 0 | AH14: 0 | AJ14: 0 | AK14: 0 | AL14: 0 | AM14: 0 | AN14: 0 | AO14: 0 | AP14: 0 | AQ14: 0 | AR14: 0 | AS14: 0 | AT14: 0 | AV14: SIĞIR | BJ14: BİRA POSASI,KURU | BK14: 92 | BL14: 29.4 | BM14: 2.53 | BN14: 0.33 | BO14: 0.55 | BP14: 0.72 | BQ14: 14.4 | BR14: 47.4 | BS14: 22.2 | BT14: 4.3 | BU14: 90 | BV14: 0 | BW14: 5 | BX14: 52.05 | BY14: 5.2 | BZ14: 8.3 | CA14: 71.3 | DA14: VİTAMİN-MİNERAL KARMASI
A15: =KarmaYem!A15 -> 0 | B15: =KarmaYem!B15 -> 0 | C15: =KarmaYem!C15 -> 0 | D15: =KarmaYem!D15 -> 0 | E15: =KarmaYem!E15 -> 0 | F15: =KarmaYem!F15 -> 0 | G15: Bypass Prot,% HP | J15: =AT3 -> 26.12242984 | K15: 29.3398939 | V15: =KarmaYem!B15 -> 0 | W15: 0 | X15: 0 | Y15: 0 | Z15: 0 | AA15: 0 | AB15: 0 | AC15: 0 | AD15: 0 | AE15: 0 | AF15: 0 | AG15: 0 | AH15: 0 | AJ15: 0 | AK15: 0 | AL15: 0 | AM15: 0 | AN15: 0 | AO15: 0 | AP15: 0 | AQ15: 0 | AR15: 0 | AS15: 0 | AT15: 0 | AV15: BUZAĞI BAŞLANGIÇ YEMİ | AW15: 88 | AX15: 18 | AY15: 2.8 | AZ15: 1 | BA15: 2 | BB15: 0.5 | BC15: 0.1 | BD15: 0.4 | BE15: 12 | BH15: 8 | BJ15: BUĞDAY KEPEĞİ, İNCE | BK15: 88 | BL15: 18.6 | BM15: 3.11 | BN15: 0.12 | BO15: 0.92 | BP15: 0.01 | BQ15: 7.4 | BR15: 37 | BS15: 10 | BT15: 5.3 | BU15: 8 | BV15: 0 | BW15: 20 | BX15: 20.7 | BY15: 4.5 | BZ15: 20 | CA15: 73.3
A16: =KarmaYem!A16 -> 0 | B16: =KarmaYem!B16 -> 0 | C16: =KarmaYem!C16 -> 0 | D16: =KarmaYem!D16 -> 0 | E16: =KarmaYem!E16 -> 0 | F16: =KarmaYem!F16 -> 0 | G16: =AN34 -> Nişasta, % | J16: =AO33 -> 50.11223871 | K16: 56.2844948 | V16: =KarmaYem!B16 -> 0 | W16: 0 | X16: 0 | Y16: 0 | Z16: 0 | AA16: 0 | AB16: 0 | AC16: 0 | AD16: 0 | AE16: 0 | AF16: 0 | AG16: 0 | AH16: 0 | AJ16: 0 | AK16: 0 | AL16: 0 | AM16: 0 | AN16: 0 | AO16: 0 | AP16: 0 | AQ16: 0 | AR16: 0 | AS16: 0 | AT16: 0 | AV16: BUZAĞI BÜYÜTME YEMİ | AW16: 88 | AX16: 17 | AY16: 2.6 | AZ16: 1 | BA16: 2 | BB16: 0.5 | BC16: 0.1 | BD16: 0.4 | BE16: 12 | BH16: 10 | BJ16: BUĞDAY KEPEĞİ, KABA | BK16: 89 | BL16: 17.1 | BM16: 2.57 | BN16: 0.13 | BO16: 1.38 | BP16: 0.06 | BQ16: 11.3 | BR16: 45.9 | BS16: 13.5 | BT16: 6.7 | BU16: 7 | BV16: 0 | BW16: 20 | BX16: 17.65 | BY16: 4.3 | BZ16: 14 | CA16: 70
A17: =KarmaYem!A17 -> 0 | B17: =KarmaYem!B17 -> 0 | C17: =KarmaYem!C17 -> 0 | D17: =KarmaYem!D17 -> 0 | E17: =KarmaYem!E17 -> 0 | F17: =KarmaYem!F17 -> 0 | G17: =AP34 -> TSBM, % | J17: =AQ33 -> 71.62309115 | K17: 80.4448096 | V17: =KarmaYem!B17 -> 0 | W17: 0 | X17: 0 | Y17: 0 | Z17: 0 | AA17: 0 | AB17: 0 | AC17: 0 | AD17: 0 | AE17: 0 | AF17: 0 | AG17: 0 | AH17: 0 | AJ17: 0 | AK17: 0 | AL17: 0 | AM17: 0 | AN17: 0 | AO17: 0 | AP17: 0 | AQ17: 0 | AR17: 0 | AS17: 0 | AT17: 0 | AV17: SIĞIR BESİ YEMİ | AW17: 88 | AX17: 12 | AY17: 2.5 | AZ17: 1 | BA17: 2 | BB17: 0.5 | BC17: 0.3 | BD17: 0.6 | BE17: 14 | BH17: 9 | BJ17: BUĞDAY KEPEĞİ, RAZMOL | BK17: 89 | BL17: 18.4 | BM17: 2.97 | BN17: 0.13 | BO17: 0.99 | BP17: 0.01 | BQ17: 8.2 | BR17: 37 | BS17: 10 | BT17: 5.3 | BU17: 9 | BV17: 0 | BW17: 20 | BX17: 20.7 | BY17: 4.5 | BZ17: 20 | CA17: 73.3
A18: =KarmaYem!A18 -> 0 | B18: =KarmaYem!B18 -> 0 | C18: =KarmaYem!C18 -> 0 | D18: =KarmaYem!D18 -> 0 | E18: =KarmaYem!E18 -> 0 | F18: =KarmaYem!F18 -> 0 | V18: =KarmaYem!B18 -> 0 | W18: 0 | X18: 0 | Y18: 0 | Z18: 0 | AA18: 0 | AB18: 0 | AC18: 0 | AD18: 0 | AE18: 0 | AF18: 0 | AG18: 0 | AH18: 0 | AJ18: 0 | AK18: 0 | AL18: 0 | AM18: 0 | AN18: 0 | AO18: 0 | AP18: 0 | AQ18: 0 | AR18: 0 | AS18: 0 | AT18: 0 | AV18: SIĞIR SÜT YEMİ,16,2400 | AW18: 88 | AX18: 16 | AY18: 2.4 | AZ18: 0.8 | BA18: 1.5 | BB18: 0.5 | BC18: 0.2 | BD18: 0.4 | BE18: 14 | BH18: 9 | BJ18: BUĞDAY UNU, BONKALİTE | BK18: 88 | BL18: 17.4 | BM18: 3.38 | BN18: 0.05 | BO18: 0.55 | BP18: 0.02 | BQ18: 2.7 | BR18: 20 | BS18: 6 | BT18: 2.7 | BU18: 10.5 | BV18: 0 | BW18: 10 | BX18: 20.7 | BY18: 3.8 | BZ18: 48.2 | CA18: 87
A19: =KarmaYem!A19 -> 0 | B19: =KarmaYem!B19 -> 0 | C19: =KarmaYem!C19 -> 0 | D19: =KarmaYem!D19 -> 0 | E19: =KarmaYem!E19 -> 0 | F19: =KarmaYem!F19 -> 0 | V19: =KarmaYem!B19 -> 0 | W19: 0 | X19: 0 | Y19: 0 | Z19: 0 | AA19: 0 | AB19: 0 | AC19: 0 | AD19: 0 | AE19: 0 | AF19: 0 | AG19: 0 | AH19: 0 | AJ19: 0 | AK19: 0 | AL19: 0 | AM19: 0 | AN19: 0 | AO19: 0 | AP19: 0 | AQ19: 0 | AR19: 0 | AS19: 0 | AT19: 0 | AV19: SIĞIR SÜT YEMİ,18,2600 | AW19: 88 | AX19: 18 | AY19: 2.6 | AZ19: 0.8 | BA19: 1.5 | BB19: 0.5 | BC19: 0.2 | BD19: 0.4 | BE19: 14 | BH19: 9 | BJ19: BUĞDAY, ELEK ALTI | BK19: 89 | BL19: 15.8 | BM19: 2.71 | BN19: 0.15 | BO19: 0.39 | BP19: 0.05 | BQ19: 7.7 | BR19: 37 | BS19: 12 | BT19: 4 | BU19: 8 | BV19: 0 | BW19: 40 | BX19: 22 | BY19: 1.9 | BZ19: 33 | CA19: 76
A20: =KarmaYem!A20 -> 0 | B20: =KarmaYem!B20 -> 0 | C20: =KarmaYem!C20 -> 0 | D20: =KarmaYem!D20 -> 0 | E20: =KarmaYem!E20 -> 0 | F20: =KarmaYem!F20 -> 0 | V20: =KarmaYem!B20 -> 0 | W20: 0 | X20: 0 | Y20: 0 | Z20: 0 | AA20: 0 | AB20: 0 | AC20: 0 | AD20: 0 | AE20: 0 | AF20: 0 | AG20: 0 | AH20: 0 | AJ20: 0 | AK20: 0 | AL20: 0 | AM20: 0 | AN20: 0 | AO20: 0 | AP20: 0 | AQ20: 0 | AR20: 0 | AS20: 0 | AT20: 0 | AV20: SIĞIR SÜT YEMİ,20,2800 | AW20: 88 | AX20: 20 | AY20: 2.8 | AZ20: 0.8 | BA20: 1.5 | BB20: 0.5 | BC20: 0.2 | BD20: 0.4 | BE20: 14 | BH20: 9 | BJ20: BUĞDAY, SERT, KIRMIZI KIŞLIK | BK20: 88 | BL20: 14.4 | BM20: 3.18 | BN20: 0.05 | BO20: 0.43 | BP20: 0.02 | BQ20: 2.8 | BR20: 28 | BS20: 4.4 | BT20: 2 | BU20: 10.5 | BV20: 0 | BW20: 40 | BX20: 28 | BY20: 2 | BZ20: 70 | CA20: 86.6
A21: =KarmaYem!A21 -> 0 | B21: =KarmaYem!B21 -> 0 | C21: =KarmaYem!C21 -> 0 | D21: =KarmaYem!D21 -> 0 | E21: =KarmaYem!E21 -> 0 | F21: =KarmaYem!F21 -> 0 | V21: =KarmaYem!B21 -> 0 | W21: 0 | X21: 0 | Y21: 0 | Z21: 0 | AA21: 0 | AB21: 0 | AC21: 0 | AD21: 0 | AE21: 0 | AF21: 0 | AG21: 0 | AH21: 0 | AJ21: 0 | AK21: 0 | AL21: 0 | AM21: 0 | AN21: 0 | AO21: 0 | AP21: 0 | AQ21: 0 | AR21: 0 | AS21: 0 | AT21: 0 | AV21: DÜVE YEMİ 1 | AW21: 88 | AX21: 17 | AY21: 2.8 | AZ21: 1 | BA21: 2 | BB21: 0.6 | BC21: 0.2 | BD21: 0.4 | BE21: 14 | BH21: 10 | BJ21: BUĞDAY, SERT, KIRMIZI YAZLIK | BK21: 88 | BL21: 17.2 | BM21: 3.25 | BN21: 0.04 | BO21: 0.43 | BP21: 0.02 | BQ21: 2.9 | BR21: 43.3 | BS21: 12.6 | BT21: 1.9 | BU21: 10.5 | BV21: 0 | BW21: 40 | BX21: 28 | BY21: 2 | BZ21: 65 | CA21: 86.6
A22: =KarmaYem!A22 -> 0 | B22: =KarmaYem!B22 -> 0 | C22: =KarmaYem!C22 -> 0 | D22: =KarmaYem!D22 -> 0 | E22: =KarmaYem!E22 -> 0 | F22: =KarmaYem!F22 -> 0 | V22: =KarmaYem!B22 -> 0 | W22: 0 | X22: 0 | Y22: 0 | Z22: 0 | AA22: 0 | AB22: 0 | AC22: 0 | AD22: 0 | AE22: 0 | AF22: 0 | AG22: 0 | AH22: 0 | AJ22: 0 | AK22: 0 | AL22: 0 | AM22: 0 | AN22: 0 | AO22: 0 | AP22: 0 | AQ22: 0 | AR22: 0 | AS22: 0 | AT22: 0 | AV22: DÜVE YEMİ 2 | AW22: 88 | AX22: 16 | AY22: 2.7 | AZ22: 1 | BA22: 2 | BB22: 0.6 | BC22: 0.2 | BD22: 0.4 | BE22: 14 | BH22: 10 | BJ22: BUĞDAY,DURUM | BK22: 87 | BL22: 15.9 | BM22: 3.06 | BN22: 0.1 | BO22: 0.41 | BP22: 0.01 | BQ22: 2.6 | BR22: 18.39 | BS22: 3.79 | BT22: 1.8 | BU22: 11 | BV22: 0 | BW22: 40 | BX22: 22.9 | BY22: 2 | BZ22: 70 | CA22: 86.6
A23: =KarmaYem!A23 -> 0 | B23: =KarmaYem!B23 -> 0 | C23: =KarmaYem!C23 -> 0 | D23: =KarmaYem!D23 -> 0 | E23: =KarmaYem!E23 -> 0 | F23: =KarmaYem!F23 -> 0 | V23: =KarmaYem!B23 -> 0 | W23: 0 | X23: 0 | Y23: 0 | Z23: 0 | AA23: 0 | AB23: 0 | AC23: 0 | AD23: 0 | AE23: 0 | AF23: 0 | AG23: 0 | AH23: 0 | AJ23: 0 | AK23: 0 | AL23: 0 | AM23: 0 | AN23: 0 | AO23: 0 | AP23: 0 | AQ23: 0 | AR23: 0 | AS23: 0 | AT23: 0 | AV23: KURU DÖNEM YEMİ | AW23: 88 | AX23: 14 | AY23: 2.4 | AZ23: 0.8 | BA23: 1.5 | BB23: 0.5 | BC23: 0.2 | BD23: 0.4 | BE23: 14 | BH23: 7 | BJ23: ÇAVDAR | BK23: 88 | BL23: 13.8 | BM23: 3.07 | BN23: 0.07 | BO23: 0.37 | BP23: 0.03 | BQ23: 2.5 | BR23: 12.3 | BS23: 4.6 | BT23: 1.9 | BU23: 40 | BV23: 0 | BW23: 15 | BX23: 21.01 | BY23: 1.7 | BZ23: 60 | CA23: 80
A24: =KarmaYem!A24 -> 0 | B24: =KarmaYem!B24 -> 0 | C24: =KarmaYem!C24 -> 0 | D24: =KarmaYem!D24 -> 0 | E24: =KarmaYem!E24 -> 0 | F24: =KarmaYem!F24 -> 0 | V24: =KarmaYem!B24 -> 0 | W24: 0 | X24: 0 | Y24: 0 | Z24: 0 | AA24: 0 | AB24: 0 | AC24: 0 | AD24: 0 | AE24: 0 | AF24: 0 | AG24: 0 | AH24: 0 | AJ24: 0 | AK24: 0 | AL24: 0 | AM24: 0 | AN24: 0 | AO24: 0 | AP24: 0 | AQ24: 0 | AR24: 0 | AS24: 0 | AT24: 0 | BJ24: ÇAVDAR KEPEĞİ | BK24: 91 | BL24: 17.5 | BM24: 2.58 | BN24: 0.12 | BO24: 0.9 | BP24: 0 | BQ24: 7.6 | BR24: 0 | BS24: 0 | BT24: 5.2 | BU24: 7.5 | BV24: 0 | BW24: 10 | BX24: 20 | BY24: 1.5 | BZ24: 19.4 | CA24: 70
A25: =KarmaYem!A25 -> 0 | B25: =KarmaYem!B25 -> 0 | C25: =KarmaYem!C25 -> 0 | D25: =KarmaYem!D25 -> 0 | E25: =KarmaYem!E25 -> 0 | F25: =KarmaYem!F25 -> 0 | V25: =KarmaYem!B25 -> 0 | W25: 0 | X25: 0 | Y25: 0 | Z25: 0 | AA25: 0 | AB25: 0 | AC25: 0 | AD25: 0 | AE25: 0 | AF25: 0 | AG25: 0 | AH25: 0 | AJ25: 0 | AK25: 0 | AL25: 0 | AM25: 0 | AN25: 0 | AO25: 0 | AP25: 0 | AQ25: 0 | AR25: 0 | AS25: 0 | AT25: 0 | BJ25: DARI,AK | BK25: 90 | BL25: 12.9 | BM25: 3.21 | BN25: 0.03 | BO25: 0.34 | BP25: 0.04 | BQ25: 6 | BR25: 15.8 | BS25: 13.8 | BT25: 3.1 | BU25: 40 | BV25: 0 | BW25: 40 | BX25: 41.65 | BY25: 3.2 | BZ25: 52.1 | CA25: 82
A26: =KarmaYem!A26 -> 0 | B26: =KarmaYem!B26 -> 0 | C26: =KarmaYem!C26 -> 0 | D26: =KarmaYem!D26 -> 0 | E26: =KarmaYem!E26 -> 0 | F26: =KarmaYem!F26 -> 0 | V26: =KarmaYem!B26 -> 0 | W26: 0 | X26: 0 | Y26: 0 | Z26: 0 | AA26: 0 | AB26: 0 | AC26: 0 | AD26: 0 | AE26: 0 | AF26: 0 | AG26: 0 | AH26: 0 | AJ26: 0 | AK26: 0 | AL26: 0 | AM26: 0 | AN26: 0 | AO26: 0 | AP26: 0 | AQ26: 0 | AR26: 0 | AS26: 0 | AT26: 0 | BJ26: DOMATES POSASI, KURUTULMUŞ | BK26: 92 | BL26: 22.9 | BM26: 2.47 | BN26: 0.43 | BO26: 0.6 | BP26: 0.31 | BQ26: 27.2 | BR26: 54.8 | BS26: 50.5 | BT26: 7.4 | BU26: 45 | BV26: 0 | BW26: 5 | BX26: 27.95 | BY26: 10.6 | CA26: 64
A27: =KarmaYem!A27 -> 0 | B27: =KarmaYem!B27 -> 0 | C27: =KarmaYem!C27 -> 0 | D27: =KarmaYem!D27 -> 0 | E27: =KarmaYem!E27 -> 0 | F27: =KarmaYem!F27 -> 0 | V27: =KarmaYem!B27 -> 0 | W27: 0 | X27: 0 | Y27: 0 | Z27: 0 | AA27: 0 | AB27: 0 | AC27: 0 | AD27: 0 | AE27: 0 | AF27: 0 | AG27: 0 | AH27: 0 | AJ27: 0 | AK27: 0 | AL27: 0 | AM27: 0 | AN27: 0 | AO27: 0 | AP27: 0 | AQ27: 0 | AR27: 0 | AS27: 0 | AT27: 0 | BJ27: EKMEK, KURUTULMUŞ | BK27: 95 | BL27: 13 | BM27: 2.67 | BN27: 0.07 | BO27: 0.11 | BP27: 0.07 | BQ27: 1 | BR27: 3 | BS27: 2 | BT27: 2.8 | BU27: 45 | BV27: 0 | BW27: 5 | BX27: 20.7 | BY27: 3.2 | BZ27: 53.5 | CA27: 89.3
A28: =KarmaYem!A28 -> 0 | B28: =KarmaYem!B28 -> 0 | C28: =KarmaYem!C28 -> 0 | D28: =KarmaYem!D28 -> 0 | E28: =KarmaYem!E28 -> 0 | F28: =KarmaYem!F28 -> 0 | V28: =KarmaYem!B28 -> 0 | W28: 0 | X28: 0 | Y28: 0 | Z28: 0 | AA28: 0 | AB28: 0 | AC28: 0 | AD28: 0 | AE28: 0 | AF28: 0 | AG28: 0 | AH28: 0 | AJ28: 0 | AK28: 0 | AL28: 0 | AM28: 0 | AN28: 0 | AO28: 0 | AP28: 0 | AQ28: 0 | AR28: 0 | AS28: 0 | AT28: 0 | AV28: TAVŞAN | BJ28: ELMA POSASI, KURUTULMUŞ | BK28: 89 | BL28: 6 | BM28: 2.56 | BN28: 0.13 | BO28: 0.12 | BP28: 0.14 | BQ28: 19 | BR28: 45 | BS28: 35 | BT28: 4 | BU28: 2 | BV28: 0 | BW28: 5 | BX28: 27.95 | BY28: 5.2 | CA28: 65
A29: =KarmaYem!A29 -> 0 | B29: =KarmaYem!B29 -> 0 | C29: =KarmaYem!C29 -> 0 | D29: =KarmaYem!D29 -> 0 | E29: =KarmaYem!E29 -> 0 | F29: =KarmaYem!F29 -> 0 | V29: =KarmaYem!B29 -> 0 | W29: 0 | X29: 0 | Y29: 0 | Z29: 0 | AA29: 0 | AB29: 0 | AC29: 0 | AD29: 0 | AE29: 0 | AF29: 0 | AG29: 0 | AH29: 0 | AJ29: 0 | AK29: 0 | AL29: 0 | AM29: 0 | AN29: 0 | AO29: 0 | AP29: 0 | AQ29: 0 | AR29: 0 | AS29: 0 | AT29: 0 | AV29: TAVŞAN BÜYÜTME YEMİ | AW29: 88 | AX29: 16 | AY29: 2.3 | AZ29: 0.8 | BA29: 1.4 | BB29: 0.6 | BC29: 0.3 | BD29: 0.4 | BE29: 10 | BH29: 10 | BJ29: FİĞ,TANE | BK29: 91 | BL29: 32.6 | BM29: 2.9 | BN29: 0.15 | BO29: 0.5 | BP29: 0.02 | BQ29: 6.3 | BR29: 22 | BS29: 14 | BT29: 3.4 | BU29: 30 | BV29: 0 | BW29: 30 | BX29: 25 | BY29: 1.13 | BZ29: 48 | CA29: 68.1
A30: =KarmaYem!A30 -> 0 | B30: =KarmaYem!B30 -> 0 | C30: =KarmaYem!C30 -> 0 | D30: =KarmaYem!D30 -> 0 | E30: =KarmaYem!E30 -> 0 | F30: =KarmaYem!F30 -> 0 | V30: =KarmaYem!B30 -> 0 | W30: 0 | X30: 0 | Y30: 0 | Z30: 0 | AA30: 0 | AB30: 0 | AC30: 0 | AD30: 0 | AE30: 0 | AF30: 0 | AG30: 0 | AH30: 0 | AJ30: 0 | AK30: 0 | AL30: 0 | AM30: 0 | AN30: 0 | AO30: 0 | AP30: 0 | AQ30: 0 | AR30: 0 | AS30: 0 | AT30: 0 | AV30: TAVŞAN EMZİRME YEMİ | AW30: 88 | AX30: 17 | AY30: 2.5 | AZ30: 1.2 | BA30: 2 | BB30: 0.8 | BC30: 0.3 | BD30: 0.4 | BE30: 16 | BH30: 10 | BJ30: GLİSEROL | BK30: 88 | BM30: 3.64 | BT30: 5 | BU30: 120 | BV30: 0 | BW30: 5 | CA30: 90
A31: =KarmaYem!A31 -> 0 | B31: =KarmaYem!B31 -> 0 | C31: =KarmaYem!C31 -> 0 | D31: =KarmaYem!D31 -> 0 | E31: =KarmaYem!E31 -> 0 | F31: =KarmaYem!F31 -> 0 | V31: =KarmaYem!B31 -> 0 | W31: 0 | X31: 0 | Y31: 0 | Z31: 0 | AA31: 0 | AB31: 0 | AC31: 0 | AD31: 0 | AE31: 0 | AF31: 0 | AG31: 0 | AH31: 0 | AJ31: 0 | AK31: 0 | AL31: 0 | AM31: 0 | AN31: 0 | AO31: 0 | AP31: 0 | AQ31: 0 | AR31: 0 | AS31: 0 | AT31: 0 | AV31: TAVŞAN BESİ YEMİ | AW31: 88 | AX31: 15 | AY31: 2.5 | AZ31: 1.2 | BA31: 1.8 | BB31: 0.8 | BC31: 0.3 | BD31: 0.4 | BE31: 10 | BH31: 10 | BJ31: KANOLA TOHUMU | BK31: 89.9 | BL31: 20.5 | BM31: 4.92 | BN31: 0.44 | BO31: 0.68 | BP31: 0.03 | BQ31: 6.47 | BR31: 17.8 | BS31: 11.6 | BT31: 4.6 | BU31: 35 | BV31: 0 | BW31: 10 | BX31: 18.4 | BY31: 40.5 | BZ31: 3.7 | CA31: 127.4
AV32: DAMIZLIK TAVŞAN YEMİ | AW32: 88 | AX32: 13 | AY32: 2.1 | AZ32: 0.8 | BA32: 1.2 | BB32: 0.6 | BC32: 0.3 | BD32: 0.4 | BE32: 16 | BH32: 10 | BJ32: KEÇİ BOYNUZU,MEYVE | BK32: 88 | BL32: 5.8 | BM32: 3.02 | BN32: 0.76 | BO32: 0.12 | BP32: 0.03 | BQ32: 9.07 | BR32: 44.77 | BS32: 44.65 | BT32: 3.99 | BU32: 55 | BV32: 0 | BW32: 5 | BX32: 20 | BY32: 33 | BZ32: 2.6 | CA32: 79
W33: Tolerans | X33: SONUÇ | Y33: 0-0 | Z33: 0-1 | AA33: 1-0 | AB33: 1=1 | AC33: 1-1 | AD33: 0-0 | AE33: 0-1 | AF33: 1-0 | AG33: 1=1 | AH33: 1-1 | AJ33: min | AK33: max | AM33: =SUM(AM35:AM61) -> 2.809116529 | AO33: =SUM(AO35:AO61) -> 50.11223871 | AQ33: =SUM(AQ35:AQ61) -> 71.62309115 | BJ33: LÜPEN | BK33: 91 | BL33: 32 | BM33: 2.82 | BN33: 0.26 | BO33: 0.44 | BQ33: 15.4 | BR33: 23.5 | BS33: 19.7 | BT33: 5.1 | BU33: 25 | BV33: 0 | BW33: 10 | BX33: 30.8 | BY33: 5.5 | BZ33: 9 | CA33: 78
V34: =G5 -> HP, % | W34: 0.005 | X34: =IF(Y34=1,AD34,IF(Z34=1,AE34,IF(AA34=1,AF34,IF(AB34=1,AG34,IF(AC34=1,AH34,""))))) -> TAMAM | Y34: =IF(AND(H5=0,I5=0)=TRUE,1,0) -> 0 | Z34: =IF(AND(H5=0,I5>0)=TRUE,1,0) -> 0 | AA34: =IF(AND(H5>0,I5=0)=TRUE,1,0) -> 0 | AB34: =IF(AND(H5>0,H5=I5)=TRUE,1,0) -> 0 | AC34: =IF(AND(H5>0,I5>0)=TRUE,1,0) -> 1 | AD34: ="" ->  | AE34: =IF(J5>I5*(1+W34),"FAZLA","TAMAM") -> TAMAM | AF34: =IF(J5<H5*(1-W34),"EKSİK","TAMAM") -> TAMAM | AG34: =IF(J5<H5*(1-W34),"EKSİK",IF(J5>I5*(1+W34),"FAZLA","TAMAM")) -> TAMAM | AH34: =IF(J5<H5*(1-W35),"EKSİK",IF(J5>I5*(1+W34),"FAZLA","TAMAM")) -> TAMAM | AJ34: =IF(Y34=1,0,IF(Z34=1,I5,IF(AA34=1,H5*(1-W34),IF(AB34=1,H5*(1-W34),IF(AC34=1,H5,0))))) -> 12 | AK34: =IF(Y34=1,0,IF(Z34=1,I5*(1+W34),IF(AA34=1,H5*(1+W34),IF(AB34=1,I5*(1+W34),IF(AC34=1,I5,""))))) -> 12.06 | AL34: HY, % | AM34: HY, % | AN34: Nişasta, % | AO34: Nişasta, % | AP34: TSBM, % | AQ34: TSBM, % | BJ34: MELAS,ŞEKER KAMIŞI | BK34: 75 | BL34: 5.8 | BM34: 2.86 | BN34: 1 | BO34: 0.11 | BP34: 0.22 | BQ34: 0.5 | BR34: 0.4 | BS34: 0.2 | BT34: 13.3 | BU34: 4 | BV34: 0 | BW34: 10 | BX34: 16.4 | BY34: 0.2 | CA34: 81
V35: =G6 -> ME, Mcal/kg | W35: 0.005 | X35: =IF(Y35=1,AD35,IF(Z35=1,AE35,IF(AA35=1,AF35,IF(AB35=1,AG35,IF(AC35=1,AH35,""))))) -> TAMAM | Y35: =IF(AND(H6=0,I6=0)=TRUE,1,0) -> 0 | Z35: =IF(AND(H6=0,I6>0)=TRUE,1,0) -> 0 | AA35: =IF(AND(H6>0,I6=0)=TRUE,1,0) -> 0 | AB35: =IF(AND(H6>0,H6=I6)=TRUE,1,0) -> 0 | AC35: =IF(AND(H6>0,I6>0)=TRUE,1,0) -> 1 | AD35: ="" ->  | AE35: =IF(J6>I6*(1+W35),"FAZLA","TAMAM") -> TAMAM | AF35: =IF(J6<H6*(1-W35),"EKSİK","TAMAM") -> TAMAM | AG35: =IF(J6<H6*(1-W35),"EKSİK",IF(J6>I6*(1+W35),"FAZLA","TAMAM")) -> TAMAM | AH35: =IF(J6<H6*(1-W35),"EKSİK",IF(J6>I6*(1+W35),"FAZLA","TAMAM")) -> TAMAM | AJ35: =IF(Y35=1,0,IF(Z35=1,I6,IF(AA35=1,H6*(1-W35),IF(AB35=1,H6*(1-W35),IF(AC35=1,H6,0))))) -> 2.75 | AK35: =IF(Y35=1,0,IF(Z35=1,I6*(1+W35),IF(AA35=1,H6*(1+W35),IF(AB35=1,I6*(1+W35),IF(AC35=1,I6,""))))) -> 2.76375 | AL35: =IF($V5=0,0,VLOOKUP($V5,$BJ$4:$CA$226,BY$2,FALSE)) -> 4.3 | AM35: =IF($V5=0,0,$AJ5*AL35/100) -> 1.598111127 | AN35: =IF($V5=0,0,VLOOKUP($V5,$BJ$4:$CA$226,BZ$2,FALSE)) -> 70 | AO35: =IF($V5=0,0,$AJ5*AN35/100) -> 26.01576254 | AP35: =IF($V5=0,0,VLOOKUP($V5,$BJ$4:$CA$226,CA$2,FALSE)) -> 88 | AQ35: =IF($V5=0,0,$AJ5*AP35/100) -> 32.70553005 | BJ35: MELAS,ŞEKER PANCARI | BK35: 78 | BL35: 8.5 | BM35: 2.78 | BN35: 0.17 | BO35: 0.03 | BP35: 1.48 | BQ35: 0 | BR35: 0.1 | BS35: 0.1 | BT35: 11.4 | BU35: 4 | BV35: 0 | BW35: 10 | BX35: 16.4 | BY35: 0.2 | CA35: 82.9
V36: Ca, % | W36: 0.003 | X36: TAMAM | Y36: 0 | Z36: 0 | AA36: 0 | AB36: 0 | AC36: 1 | AD36: ="" ->  | AE36: TAMAM | AF36: TAMAM | AG36: TAMAM | AH36: TAMAM | AJ36: =IF(Y36=1,0,IF(Z36=1,I7,IF(AA36=1,H7*(1-W36),IF(AB36=1,H7*(1-W36),IF(AC36=1,H7,0))))) -> 0.6 | AK36: 1.6 | AL36: =IF($V6=0,0,VLOOKUP($V6,$BJ$4:$CA$226,BY$2,FALSE)) -> 2.1 | AM36: =IF($V6=0,0,$AJ6*AL36/100) -> 0.7392 | AN36: =IF($V6=0,0,VLOOKUP($V6,$BJ$4:$CA$226,BZ$2,FALSE)) -> 64 | AO36: 22.528 | AP36: =IF($V6=0,0,VLOOKUP($V6,$BJ$4:$CA$226,CA$2,FALSE)) -> 82.7 | AQ36: =IF($V6=0,0,$AJ6*AP36/100) -> 29.1104 | BJ36: MERCİMEK | BK36: 88 | BL36: 26.9 | BM36: 3.23 | BN36: 0.09 | BO36: 0.42 | BP36: 0.03 | BQ36: 4.9 | BR36: 13 | BS36: 6.3 | BT36: 3.8 | BU36: 20 | BV36: 0 | BW36: 30 | BX36: 22 | BY36: 1.6 | BZ36: 36 | CA36: 75.2
V37: P, % | W37: 0.003 | X37: TAMAM | Y37: 0 | Z37: 0 | AA37: 1 | AB37: 0 | AC37: 0 | AD37: ="" ->  | AE37: FAZLA | AF37: TAMAM | AG37: FAZLA | AH37: FAZLA | AJ37: 0.3988 | AK37: 0.4012 | AL37: 4.3 | AM37: 0.406312727 | AN37: 14 | AO37: 1.322878646 | AP37: 70 | AQ37: =IF($V7=0,0,$AJ7*AP37/100) -> 6.61439323 | BJ37: MISIR GRİZİ | BK37: 90 | BL37: 12.2 | BM37: 3.41 | BN37: 0.05 | BO37: 0.59 | BP37: 0.01 | BQ37: 5.6 | BR37: 21.1 | BS37: 6.2 | BT37: 2.7 | BU37: 9 | BV37: 0 | BW37: 40 | BX37: 48 | BY37: 4.2 | BZ37: 40.5 | CA37: 83.1
V38: Na, % | W38: 0.003 | X38: TAMAM | Y38: 0 | Z38: 0 | AA38: 0 | AB38: 0 | AC38: 1 | AD38: ="" ->  | AE38: TAMAM | AF38: TAMAM | AG38: TAMAM | AH38: TAMAM | AJ38: 0.1 | AK38: 0.4 | AL38: 1.6 | AM38: 0.06549267432 | AN38: 6 | AO38: 0.2455975287 | AP38: 78 | AQ38: =IF($V8=0,0,$AJ8*AP38/100) -> 3.192767873 | BJ38: MISIR KEPEĞİ | BK38: 89 | BL38: 9.2 | BM38: 2.74 | BN38: 0.04 | BO38: 0.22 | BP38: 0 | BQ38: 10.7 | BR38: 61.7 | BS38: 16 | BT38: 2.2 | BU38: 9 | BV38: 0 | BW38: 20 | BX38: 27.75 | BY38: 6.3 | BZ38: 35 | CA38: 76
V39: HS, % | W39: 0.003 | X39: TAMAM | Y39: 0 | Z39: 0 | AA39: 0 | AB39: 0 | AC39: 1 | AD39: ="" ->  | AE39: TAMAM | AF39: TAMAM | AG39: TAMAM | AH39: TAMAM | AJ39: 1.2 | AK39: 12 | AL39: 0 | AM39: 0 | AN39: =IF($V9=0,0,VLOOKUP($V9,$BJ$4:$CA$226,BZ$2,FALSE)) -> 0 | AO39: =IF($V9=0,0,$AJ9*AN39/100) -> 0 | AP39: 0 | AQ39: =IF($V9=0,0,$AJ9*AP39/100) -> 0 | AV39: YEM GRUPLARI | BJ39: MISIR KEPEĞİ,18 HP | BK39: 89 | BL39: 19.5 | BM39: 2 | BN39: 0.04 | BO39: 0.22 | BP39: 0 | BQ39: 10.7 | BR39: 61.7 | BS39: 16 | BT39: 2.2 | BU39: 9 | BV39: 0 | BW39: 20 | BX39: 27.75 | BY39: 6.3 | BZ39: 10 | CA39: 76
V40: =G11 -> HK, % | W40: 0.003 | X40: =IF(Y40=1,AD40,IF(Z40=1,AE40,IF(AA40=1,AF40,IF(AB40=1,AG40,IF(AC40=1,AH40,""))))) -> TAMAM | Y40: =IF(AND(H11=0,I11=0)=TRUE,1,0) -> 0 | Z40: =IF(AND(H11=0,I11>0)=TRUE,1,0) -> 1 | AA40: =IF(AND(H11>0,I11=0)=TRUE,1,0) -> 0 | AB40: =IF(AND(H11>0,H11=I11)=TRUE,1,0) -> 0 | AC40: =IF(AND(H11>0,I11>0)=TRUE,1,0) -> 0 | AD40: ="" ->  | AE40: =IF(J11>I11*(1+W40),"FAZLA","TAMAM") -> TAMAM | AF40: =IF(J11<H11*(1-W40),"EKSİK","TAMAM") -> TAMAM | AG40: =IF(J11<H11*(1-W40),"EKSİK",IF(J11>I11*(1+W40),"FAZLA","TAMAM")) -> TAMAM | AH40: =IF(J11<H11*(1-W40),"EKSİK",IF(J11>I11*(1+W40),"FAZLA","TAMAM")) -> TAMAM | AJ40: =IF(Y40=1,0,IF(Z40=1,I11,IF(AA40=1,H11*(1-W40),IF(AB40=1,H11*(1-W40),IF(AC40=1,H11,0))))) -> 9 | AK40: =IF(Y40=1,0,IF(Z40=1,I11*(1+W40),IF(AA40=1,H11*(1+W40),IF(AB40=1,I11*(1+W40),IF(AC40=1,I11,""))))) -> 9.027 | AL40: 0 | AM40: 0 | AN40: 0 | AO40: 0 | AP40: 0 | AQ40: =IF($V10=0,0,$AJ10*AP40/100) -> 0 | AV40: ENERJİ KAYNAKLARI ve YAN ÜRÜNLERİ | BJ40: MISIR KEPEĞİ+GERM (HOMINY) | BK40: 90 | BL40: 11 | BM40: 3.2 | BN40: 0 | BO40: 0.5 | BQ40: 5 | BR40: 21 | BS40: 7 | BT40: 3 | BU40: 10 | BV40: 0 | BW40: 5 | BX40: 48.18 | BY40: 6.1 | BZ40: 40.5 | CA40: 89
V41: =G12 -> HY, % | W41: 0.03 | X41: =IF(Y41=1,AD41,IF(Z41=1,AE41,IF(AA41=1,AF41,IF(AB41=1,AG41,IF(AC41=1,AH41,""))))) ->  | Y41: =IF(AND(H12=0,I12=0)=TRUE,1,0) -> 1 | Z41: =IF(AND(H12=0,I12>0)=TRUE,1,0) -> 0 | AA41: =IF(AND(H12>0,I12=0)=TRUE,1,0) -> 0 | AB41: =IF(AND(H12>0,H12=I12)=TRUE,1,0) -> 0 | AC41: =IF(AND(H12>0,I12>0)=TRUE,1,0) -> 0 | AD41: ="" ->  | AE41: =IF(J12>I12*(1+W41),"FAZLA","TAMAM") -> FAZLA | AF41: =IF(J12<H12*(1-W41),"EKSİK","TAMAM") -> TAMAM | AG41: =IF(J12<H12*(1-W41),"EKSİK",IF(J12>I12*(1+W41),"FAZLA","TAMAM")) -> FAZLA | AH41: =IF(J12<H12*(1-W41),"EKSİK",IF(J12>I12*(1+W41),"FAZLA","TAMAM")) -> FAZLA | AJ41: =IF(Y41=1,0,IF(Z41=1,I12,IF(AA41=1,H12*(1-W41),IF(AB41=1,H12*(1-W41),IF(AC41=1,H12,0))))) -> 0 | AK41: =IF(Y41=1,0,IF(Z41=1,I12*(1+W41),IF(AA41=1,H12*(1+W41),IF(AB41=1,I12*(1+W41),IF(AC41=1,I12,""))))) -> 0 | AL41: 0 | AM41: 0 | AN41: 0 | AO41: 0 | AP41: 0 | AQ41: =IF($V11=0,0,$AJ11*AP41/100) -> 0 | AV41: PROTEİN KAYNAKLARI | BJ41: MISIR KOÇANI (TANELİ), ÖĞÜTÜLMÜŞ | BK41: 87 | BL41: 9 | BM41: 3 | BN41: 0.07 | BO41: 0.27 | BP41: 0.03 | BQ41: 9.4 | BR41: 21.5 | BS41: 8 | BT41: 1.7 | BU41: 3 | BV41: 0 | BW41: 10 | BX41: 42 | BY41: 3.7 | BZ41: 20 | CA41: 82
V42: =G13 -> NDF, % | W42: 0.003 | Y42: =IF(AND(H13=0,I13=0)=TRUE,1,0) -> 1 | Z42: =IF(AND(H13=0,I13>0)=TRUE,1,0) -> 0 | AA42: =IF(AND(H13>0,I13=0)=TRUE,1,0) -> 0 | AB42: =IF(AND(H13>0,H13=I13)=TRUE,1,0) -> 0 | AC42: =IF(AND(H13>0,I13>0)=TRUE,1,0) -> 0 | AD42: ="" ->  | AE42: =IF(J13>I13*(1+W42),"FAZLA","TAMAM") -> FAZLA | AF42: =IF(J13<H13*(1-W42),"EKSİK","TAMAM") -> TAMAM | AG42: =IF(J13<H13*(1-W42),"EKSİK",IF(J13>I13*(1+W42),"FAZLA","TAMAM")) -> FAZLA | AH42: =IF(J13<H13*(1-W42),"EKSİK",IF(J13>I13*(1+W42),"FAZLA","TAMAM")) -> FAZLA | AJ42: =IF(Y42=1,0,IF(Z42=1,I13,IF(AA42=1,H13*(1-W42),IF(AB42=1,H13*(1-W42),IF(AC42=1,H13,0))))) -> 0 | AK42: =IF(Y42=1,0,IF(Z42=1,I13*(1+W42),IF(AA42=1,H13*(1+W42),IF(AB42=1,I13*(1+W42),IF(AC42=1,I13,""))))) -> 0 | AL42: 0 | AM42: 0 | AN42: 0 | AO42: 0 | AP42: 0 | AQ42: =IF($V12=0,0,$AJ12*AP42/100) -> 0 | AV42: VİTAMİN-MİNERAL ve KATKI MADDELERİ | BJ42: MISIR, 2800 | BK42: 88 | BL42: 10.1 | BM42: 3.15 | BN42: 0.02 | BO42: 0.29 | BP42: 0.02 | BQ42: 2.4 | BR42: 9.5 | BS42: 3.4 | BT42: 1.5 | BU42: 8.5 | BV42: 0 | BW42: 70 | BX42: 42.15 | BY42: 4 | BZ42: 65 | CA42: 85
V43: =G14 -> ADF, % | W43: 0.003 | Y43: =IF(AND(H14=0,I14=0)=TRUE,1,0) -> 1 | Z43: =IF(AND(H14=0,I14>0)=TRUE,1,0) -> 0 | AA43: =IF(AND(H14>0,I14=0)=TRUE,1,0) -> 0 | AB43: =IF(AND(H14>0,H14=I14)=TRUE,1,0) -> 0 | AC43: =IF(AND(H14>0,I14>0)=TRUE,1,0) -> 0 | AD43: ="" ->  | AE43: =IF(J14>I14*(1+W43),"FAZLA","TAMAM") -> FAZLA | AF43: =IF(J14<H14*(1-W43),"EKSİK","TAMAM") -> TAMAM | AG43: =IF(J14<H14*(1-W43),"EKSİK",IF(J14>I14*(1+W43),"FAZLA","TAMAM")) -> FAZLA | AH43: =IF(J14<H14*(1-W43),"EKSİK",IF(J14>I14*(1+W43),"FAZLA","TAMAM")) -> FAZLA | AJ43: =IF(Y43=1,0,IF(Z43=1,I14,IF(AA43=1,H14*(1-W43),IF(AB43=1,H14*(1-W43),IF(AC43=1,H14,0))))) -> 0 | AK43: =IF(Y43=1,0,IF(Z43=1,I14*(1+W43),IF(AA43=1,H14*(1+W43),IF(AB43=1,I14*(1+W43),IF(AC43=1,I14,""))))) -> 0 | AL43: 0 | AM43: 0 | AN43: 0 | AO43: 0 | AP43: 0 | AQ43: =IF($V13=0,0,$AJ13*AP43/100) -> 0 | BJ43: MISIR, 2950 | BK43: 88 | BL43: 10.1 | BM43: 3.35 | BN43: 0.02 | BO43: 0.29 | BP43: 0.02 | BQ43: 2.4 | BR43: 11 | BS43: 3.4 | BT43: 1.5 | BU43: 9 | BV43: 0 | BW43: 70 | BX43: 42.15 | BY43: 4.1 | BZ43: 65 | CA43: 87
V44: =G15 -> Bypass Prot,% HP | W44: 0.003 | X44: =IF(Y44=1,AD44,IF(Z44=1,AE44,IF(AA44=1,AF44,IF(AB44=1,AG44,IF(AC44=1,AH44,""))))) ->  | Y44: =IF(AND(H15=0,I15=0)=TRUE,1,0) -> 1 | Z44: =IF(AND(H15=0,I15>0)=TRUE,1,0) -> 0 | AA44: =IF(AND(H15>0,I15=0)=TRUE,1,0) -> 0 | AB44: =IF(AND(H15>0,H15=I15)=TRUE,1,0) -> 0 | AC44: =IF(AND(H15>0,I15>0)=TRUE,1,0) -> 0 | AD44: ="" ->  | AE44: =IF(J15>I15*(1+W44),"FAZLA","TAMAM") -> FAZLA | AF44: =IF(J15<H15*(1-W44),"EKSİK","TAMAM") -> TAMAM | AG44: =IF(J15<H15*(1-W44),"EKSİK",IF(J15>I15*(1+W44),"FAZLA","TAMAM")) -> FAZLA | AH44: =IF(J15<H15*(1-W44),"EKSİK",IF(J15>I15*(1+W44),"FAZLA","TAMAM")) -> FAZLA | AJ44: =IF(Y44=1,0,IF(Z44=1,I15,IF(AA44=1,H15*(1-W44),IF(AB44=1,H15*(1-W44),IF(AC44=1,H15,0))))) -> 0 | AK44: =IF(Y44=1,0,IF(Z44=1,I15*(1+W44),IF(AA44=1,H15*(1+W44),IF(AB44=1,I15*(1+W44),IF(AC44=1,I15,""))))) -> 0 | AL44: 0 | AM44: 0 | AN44: 0 | AO44: 0 | AP44: 0 | AQ44: =IF($V14=0,0,$AJ14*AP44/100) -> 0 | AV44: Hayvan Grupları | BJ44: MISIR, 3100 | BK44: 89 | BL44: 10 | BM44: 3.47 | BN44: 0.3 | BO44: 0.29 | BP44: 0.02 | BQ44: 2.6 | BR44: 9.5 | BS44: 3.4 | BT44: 1.5 | BU44: 9.5 | BV44: 0 | BW44: 70 | BX44: 42.15 | BY44: 4.3 | BZ44: 70 | CA44: 88
AL45: 0 | AM45: 0 | AN45: 0 | AO45: 0 | AP45: 0 | AQ45: =IF($V15=0,0,$AJ15*AP45/100) -> 0 | AV45: KOYUN | BJ45: MISIR POSASI (ŞLEMPE, DDGS) | BK45: 90.2 | BL45: 29.7 | BM45: 3.03 | BN45: 0.22 | BO45: 0.83 | BP45: 0.3 | BQ45: 12.3 | BR45: 38.8 | BS45: 19.7 | BT45: 5.2 | BU45: 11 | BV45: 0 | BW45: 10 | BX45: 44 | BY45: 10 | BZ45: 6 | CA45: 92
AL46: 0 | AM46: 0 | AN46: 0 | AO46: 0 | AP46: 0 | AQ46: =IF($V16=0,0,$AJ16*AP46/100) -> 0 | AV46: SIĞIR | BJ46: NOHUT | BK46: 91 | BL46: 21.7 | BM46: 3.3 | BN46: 0.2 | BO46: 0.4 | BP46: 0.02 | BQ46: 10.5 | BR46: 22.8 | BS46: 13.8 | BT46: 3.3 | BU46: 30 | BV46: 0 | BW46: 20 | BX46: 16 | BY46: 5 | BZ46: 36 | CA46: 76
AL47: 0 | AM47: 0 | AN47: 0 | AO47: 0 | AP47: 0 | AQ47: =IF($V17=0,0,$AJ17*AP47/100) -> 0 | AV47: TAVŞAN | BJ47: PAMUK ÇIRÇIR ARTIĞI | BK47: 90 | BL47: 7.4 | BM47: 1.66 | BN47: 0.83 | BO47: 0.22 | BP47: 0 | BQ47: 34.1 | BR47: 70 | BS47: 50.4 | BT47: 16.2 | BU47: 5 | BV47: 0 | BW47: 15 | BX47: 53.15 | BY47: 2 | CA47: 44
AL48: 0 | AM48: 0 | AN48: 0 | AO48: 0 | AP48: 0 | AQ48: =IF($V18=0,0,$AJ18*AP48/100) -> 0 | BJ48: PAMUK TOHUMU | BK48: 92 | BL48: 23.6 | BM48: 3.54 | BN48: 0.15 | BO48: 0.73 | BP48: 0.02 | BQ48: 19.8 | BR48: 50.3 | BS48: 40.1 | BT48: 4.2 | BU48: 80 | BV48: 0 | BW48: 10 | BX48: 20.3 | BY48: 17.8 | CA48: 95
AL49: 0 | AM49: 0 | AN49: 0 | AO49: 0 | AP49: 0 | AQ49: =IF($V19=0,0,$AJ19*AP49/100) -> 0 | AV49: Hayvanın Türü : | AX49: KOYUN | BJ49: PİRİNÇ | BK49: 89 | BL49: 8.2 | BM49: 3.29 | BN49: 0.03 | BO49: 0.13 | BP49: 0.07 | BQ49: 0.4 | BR49: 16 | BS49: 1 | BT49: 6 | BU49: 12 | BV49: 0 | BW49: 30 | BX49: 30.15 | BY49: 1.9 | BZ49: 41.8 | CA49: 79
AL50: 0 | AM50: 0 | AN50: 0 | AO50: 0 | AP50: 0 | AQ50: =IF($V20=0,0,$AJ20*AP50/100) -> 0 | BJ50: PİRİNÇ KEPEĞİ+GERM | BK50: 91 | BL50: 14.1 | BM50: 2.68 | BN50: 0.08 | BO50: 1.7 | BP50: 0.01 | BQ50: 12.8 | BR50: 26.1 | BS50: 13.1 | BT50: 10.4 | BU50: 9 | BV50: 0 | BW50: 10 | BX50: 44.2 | BY50: 17 | BZ50: 22 | CA50: 84.8
AL51: 0 | AM51: 0 | AN51: 0 | AO51: 0 | AP51: 0 | AQ51: =IF($V21=0,0,$AJ21*AP51/100) -> 0 | AV51: Yemin Çeşidi : | AX51: TOKLU BESİ YEMİ | BJ51: RUMEN İÇERİĞİ, KURUTULMUŞ | BK51: 89 | BL51: 17.6 | BM51: 2.09 | BN51: 0.79 | BO51: 0.67 | BP51: 0 | BQ51: 25 | BR51: 0 | BS51: 0 | BT51: 11 | BU51: 50 | BV51: 0 | BW51: 5 | BX51: 35 | BY51: 14.6
AL52: 0 | AM52: 0 | AN52: 0 | AO52: 0 | AP52: 0 | AQ52: =IF($V22=0,0,$AJ22*AP52/100) -> 0 | BJ52: SORGUM, 10 HP | BK52: 89 | BL52: 11.5 | BM52: 3.11 | BN52: 0.03 | BO52: 0.31 | BP52: 0.01 | BQ52: 2.4 | BR52: 10.9 | BS52: 5.9 | BT52: 2 | BU52: 100 | BV52: 0 | BW52: 40 | BX52: 41.65 | BY52: 3 | BZ52: 74 | CA52: 80.6
AL53: 0 | AM53: 0 | AN53: 0 | AO53: 0 | AP53: 0 | AQ53: =IF($V23=0,0,$AJ23*AP53/100) -> 0 | BJ53: ŞEK.PAN.POSASI,KURU | BK53: 91 | BL53: 9.7 | BM53: 2.68 | BN53: 0.69 | BO53: 0.1 | BP53: 0.04 | BQ53: 19.8 | BR53: 45.8 | BS53: 23.1 | BT53: 4.7 | BU53: 2 | BV53: 0 | BW53: 10 | BX53: 71.25 | BY53: 0.7 | BZ53: 1 | CA53: 69.1
AL54: 0 | AM54: 0 | AN54: 0 | AO54: 0 | AP54: 0 | AQ54: =IF($V24=0,0,$AJ24*AP54/100) -> 0 | BJ54: ŞEK.PAN.POSASI,KURU, MELASLI | BK54: 92 | BL54: 10.1 | BM54: 2.78 | BN54: 0.61 | BO54: 0.1 | BP54: 0.53 | BQ54: 16.5 | BR54: 59 | BS54: 26.6 | BT54: 6.2 | BU54: 2 | BV54: 0 | BW54: 10 | BX54: 71.25 | BY54: 0.6 | BZ54: 1 | CA54: 78
AL55: 0 | AM55: 0 | AN55: 0 | AO55: 0 | AP55: 0 | AQ55: =IF($V25=0,0,$AJ25*AP55/100) -> 0 | BJ55: TAPİOKA | BK55: 88 | BL55: 2.8 | BM55: 3.11 | BN55: 0.15 | BO55: 0.03 | BP55: 0 | BQ55: 4.5 | BR55: 34 | BS55: 8 | BT55: 2.3 | BU55: 55 | BV55: 0 | BW55: 30 | BX55: 43.89 | BY55: 0.8 | BZ55: 62 | CA55: 80
AL56: 0 | AM56: 0 | AN56: 0 | AO56: 0 | AP56: 0 | AQ56: =IF($V26=0,0,$AJ26*AP56/100) -> 0 | BJ56: TRİTİKALE, 2800 | BK56: 89 | BL56: 17.3 | BM56: 3.15 | BN56: 0.04 | BO56: 0.34 | BP56: 0.01 | BQ56: 3.3 | BR56: 22 | BS56: 5 | BT56: 2 | BU56: 20 | BV56: 0 | BW56: 40 | BX56: 22.9 | BY56: 2.4 | BZ56: 53.5 | CA56: 84
AL57: 0 | AM57: 0 | AN57: 0 | AO57: 0 | AP57: 0 | AQ57: =IF($V27=0,0,$AJ27*AP57/100) -> 0 | BJ57: TRİTİKALE, 3450 | BK57: 91 | BL57: 16.5 | BM57: 3.79 | BN57: 0.06 | BO57: 0.33 | BP57: 0.01 | BQ57: 4.4 | BR57: 22 | BS57: 5 | BT57: 2 | BU57: 30 | BV57: 0 | BW57: 40 | BX57: 22.9 | BY57: 2.4 | BZ57: 53.5 | CA57: 84
A58: =IF(OR(B5="",B5=0)=TRUE,"",IF(C5<=0,"",A5)) -> 1 | B58: =IF(OR(B5="",B5=0)=TRUE,"",IF(C5<=0,"",B5)) -> MISIR, 3100 | C58: =IF(OR(B5="",B5=0)=TRUE,"",IF(C5<=0,"",C5)) -> 41.75884838 | AL58: 0 | AM58: 0 | AN58: 0 | AO58: 0 | AP58: 0 | AQ58: =IF($V28=0,0,$AJ28*AP58/100) -> 0 | BJ58: TURUNÇGİL POSASI, KURU | BK58: 91 | BL58: 6.7 | BM58: 3.04 | BN58: 1.84 | BO58: 0.12 | BP58: 0.03 | BQ58: 12.7 | BR58: 24.2 | BS58: 22.2 | BT58: 7.2 | BU58: 5 | BV58: 0 | BW58: 5 | BX58: 27.95 | BY58: 2.2 | BZ58: 1.5 | CA58: 79.8
A59: =IF(OR(B6="",B6=0)=TRUE,"",IF(C6<=0,"",A6)) -> 1 | B59: =IF(OR(B6="",B6=0)=TRUE,"",IF(C6<=0,"",B6)) -> ARPA | C59: =IF(OR(B6="",B6=0)=TRUE,"",IF(C6<=0,"",C6)) -> 40 | AL59: 0 | AM59: 0 | AN59: 0 | AO59: 0 | AP59: 0 | AQ59: =IF($V29=0,0,$AJ29*AP59/100) -> 0 | BJ59: ÜZÜM POSASI,KURU | BK59: 90 | BL59: 13.4 | BM59: 0.73 | BN59: 0.58 | BO59: 0.17 | BP59: 0.09 | BQ59: 32 | BR59: 53.2 | BS59: 54.4 | BT59: 8.3 | BU59: 3 | BV59: 0 | BW59: 3 | BX59: 25 | BY59: 8.4 | CA59: 27
A60: 1 | B60: BUĞDAY KEPEĞİ, KABA | C60: 10.61700358 | AL60: 0 | AM60: 0 | AN60: 0 | AO60: 0 | AP60: 0 | AQ60: =IF($V30=0,0,$AJ30*AP60/100) -> 0 | BJ60: YAĞ,Bitkisel | BK60: 100 | BL60: 0 | BM60: 8.5 | BN60: 0 | BO60: 0 | BP60: 0 | BQ60: 0 | BR60: 0 | BS60: 0 | BT60: 0 | BU60: 45 | BV60: 0 | BW60: 4 | BX60: 0 | BY60: 99 | CA60: 184
A61: 2 | B61: SOYA KÜSPESİ, SOLVENT, 44 HP | C61: 4.498123237 | AL61: 0 | AM61: 0 | AN61: 0 | AO61: 0 | AP61: 0 | AQ61: =IF($V31=0,0,$AJ31*AP61/100) -> 0 | BJ61: YAĞ,Bypass,fraksiyonize | BK61: 99.95 | BL61: 0 | BM61: 9 | BN61: 0 | BO61: 0 | BP61: 0 | BQ61: 0 | BR61: 0 | BS61: 0 | BT61: 0 | BU61: 73 | BV61: 0 | BW61: 5 | BX61: 0 | BY61: 99 | CA61: 176
A62: 3 | B62: MERMER TOZU | C62: 1.912069218 | BJ62: YAĞ,Bypass,Ca sabunu | BK62: 95.3 | BL62: 0 | BM62: 6.27 | BN62: 12 | BO62: 0 | BP62: 0 | BQ62: 0 | BR62: 0 | BS62: 0 | BT62: 0 | BU62: 70 | BV62: 0 | BW62: 5 | BX62: 0 | BY62: 84.5 | CA62: 163.5
A63: 3 | B63: TUZ | C63: 0.9639555877 | BJ63: YAĞ,Kuyruk | BK63: 99.8 | BL63: 0 | BM63: 8.5 | BN63: 0 | BO63: 0 | BP63: 0 | BQ63: 0 | BR63: 0 | BS63: 0 | BT63: 0 | BU63: 400 | BV63: 0 | BW63: 4 | BX63: 0 | BY63: 99.8 | CA63: 147.4
A64: 3 | B64: VİTAMİN-MİNERAL KARMASI | C64: 0.25 | BJ64: YULAF KAVUZU | BK64: 92 | BL64: 4 | BM64: 1.09 | BN64: 0.15 | BO64: 0.15 | BP64: 0.04 | BQ64: 33.4 | BR64: 74.3 | BS64: 40.5 | BT64: 6.6 | BU64: 3.5 | BV64: 0 | BW64: 5 | BX64: 25 | BY64: 1.5 | CA64: 35
BJ65: YULAF, 2175 | BK65: 91 | BL65: 13.1 | BM65: 2.39 | BN65: 0.07 | BO65: 0.3 | BP65: 0.06 | BQ65: 15.9 | BR65: 29.6 | BS65: 15.9 | BT65: 3.4 | BU65: 7 | BV65: 0 | BW65: 30 | BX65: 13.1 | BY65: 5 | BZ65: 57 | CA65: 76
BJ66: YULAF, 2475 | BK66: 89 | BL66: 13.3 | BM66: 2.78 | BN66: 0.07 | BO66: 0.68 | BP66: 0.03 | BQ66: 12.1 | BR66: 30 | BS66: 14.6 | BT66: 3.3 | BU66: 8.25 | BV66: 0 | BW66: 30 | BX66: 13.1 | BY66: 6 | BZ66: 57 | CA66: 76
BJ67: YULAF,KABUKSUZ | BK67: 90 | BL67: 17.7 | BM67: 3.69 | BN67: 0.08 | BO67: 0.48 | BP67: 0.06 | BQ67: 2.8 | BR67: 9.9 | BS67: 3.7 | BT67: 4.6 | BU67: 9 | BV67: 0 | BW67: 30 | BX67: 13.1 | BY67: 6.6 | BZ67: 57 | CA67: 91
BJ68: ZEYTİN POSASI,ÇEKİRDEKSİZ,KURU | BK68: 93.27 | BL68: 8.86 | BM68: 1.29 | BN68: 0.58 | BO68: 0.17 | BP68: 0.09 | BR68: 70.26 | BS68: 57.99 | BT68: 5.81 | BU68: 45 | BV68: 0 | BW68: 2 | BX68: 82.5 | BY68: 10.84 | CA68: 40
BJ69: ZEYTİN POSASI,ÇEKİRDEKLİ,KURU | BK69: 94.2 | BL69: 7.06 | BM69: 0.09 | BN69: 0.58 | BO69: 0.017 | BP69: 0.09 | BR69: 75.92 | BS69: 61.71 | BT69: 4.86 | BU69: 45 | BV69: 0 | BW69: 2 | BX69: 84.5 | BY69: 7.79 | CA69: 32
BJ79: PROTEİN KAYNAKLARI | BK79: KM, % | BL79: HP, % | BM79: ME, Mcal/kg | BN79: Ca, % | BO79: P, % | BP79: Na,% | BQ79: HS, % | BR79: NDF,% | BS79: ADF,% | BT79: HK, % | BU79: Fiyat,TL | BV79: Enaz | BW79: Ençok | BX79: RUP,%HP'de | BY79: HY, % | BZ79: Nişasta,% | CA79: TSBM,%
BJ80: ASPİR KÜSPESİ,PRES | BK80: 91 | BL80: 22.1 | BM80: 2.24 | BN80: 0.27 | BO80: 0.78 | BP80: 0.04 | BQ80: 35.4 | BR80: 53.8 | BS80: 39.1 | BT80: 4.7 | BU80: 8.5 | BV80: 0 | BW80: 15 | BX80: 40 | BY80: 9.4 | BZ80: 5 | CA80: 60
BJ81: ASPİR KÜSPESİ,SOLVENT | BK81: 92 | BL81: 25.4 | BM81: 2.03 | BN81: 0.37 | BO81: 0.81 | BP81: 0.04 | BQ81: 32.5 | BR81: 53.8 | BS81: 39.1 | BT81: 4.7 | BU81: 8.5 | BV81: 0 | BW81: 15 | BX81: 31.15 | BY81: 0.6 | BZ81: 5 | CA81: 52.5
BJ82: AYÇİÇEĞİ KÜSPESİ, 23 HP | BK82: 90 | BL82: 25.9 | BM82: 1.63 | BN82: 0.23 | BO82: 1.03 | BP82: 0.04 | BQ82: 35.1 | BR82: 40.3 | BS82: 30 | BT82: 7.7 | BU82: 11 | BV82: 0 | BW82: 30 | BX82: 13.85 | BY82: 2.4 | BZ82: 5 | CA82: 58
BJ83: AYÇİÇEĞİ KÜSPESİ, 26 HP | BK83: 90 | BL83: 28.8 | BM83: 1.78 | BN83: 0.4 | BO83: 1.03 | BP83: 0.04 | BQ83: 27 | BR83: 46 | BS83: 33 | BT83: 7 | BU83: 11 | BV83: 0 | BW83: 30 | BX83: 20.7 | BY83: 2.4 | BZ83: 5 | CA83: 60
BJ84: AYÇİÇEĞİ KÜSPESİ, 28 HP | BK84: 90 | BL84: 31 | BM84: 1.9 | BN84: 0.4 | BO84: 1.03 | BP84: 0.04 | BQ84: 27 | BR84: 44 | BS84: 32 | BT84: 7 | BU84: 11 | BV84: 0 | BW84: 30 | BX84: 20.7 | BY84: 2.4 | BZ84: 5 | CA84: 61
BJ85: AYÇİÇEĞİ KÜSPESİ, 30 HP | BK85: 90 | BL85: 33 | BM85: 2.18 | BN85: 0.26 | BO85: 1.22 | BP85: 0.04 | BQ85: 22 | BR85: 36 | BS85: 26 | BT85: 7.3 | BU85: 11 | BV85: 0 | BW85: 30 | BX85: 20.7 | BY85: 2.4 | BZ85: 5 | CA85: 62
BJ86: AYÇİÇEĞİ KÜSPESİ, 34 HP | BK86: 91 | BL86: 37 | BM86: 2.25 | BN86: 0.44 | BO86: 0.97 | BP86: 0.04 | BQ86: 20 | BR86: 36 | BS86: 24 | BT86: 8 | BU86: 12 | BV86: 0 | BW86: 30 | BX86: 20.7 | BY86: 2.5 | BZ86: 5 | CA86: 64
BJ87: AYÇİÇEĞİ KÜSPESİ,KABUKSUZ,PRES, 40 HP | BK87: 92 | BL87: 44.2 | BM87: 2.7 | BN87: 0.44 | BO87: 0.98 | BP87: 0.04 | BQ87: 14.3 | BR87: 42.9 | BS87: 30.2 | BT87: 7.3 | BU87: 12 | BV87: 0 | BW87: 30 | BX87: 27 | BY87: 13.8 | BZ87: 6 | CA87: 74
BJ88: BALIK UNU, RİNGA | BK88: 92 | BL88: 66.7 | BM88: 2.53 | BN88: 5.65 | BO88: 3.16 | BP88: 0.68 | BQ88: 1 | BR88: 0 | BS88: 0 | BT88: 19.7 | BU88: 250 | BV88: 0 | BW88: 2 | BX88: 62.45 | BY88: 8 | BZ88: 8 | CA88: 79.9
BJ89: BİRA MAYASI | BK89: 93 | BL89: 47.1 | BM89: 3.04 | BN89: 0.15 | BO89: 1.47 | BP89: 0.08 | BQ89: 3.2 | BR89: 0 | BS89: 3 | BT89: 7 | BU89: 370 | BV89: 0 | BW89: 2 | BX89: 50 | BY89: 1 | BZ89: 4.9 | CA89: 79
BJ90: ET-KEMİK UNU | BK90: 93 | BL90: 54 | BM90: 2.7 | BN90: 10.72 | BO90: 5.3 | BP90: 0.71 | BQ90: 2.6 | BR90: 35 | BS90: 6 | BT90: 30.4 | BU90: 85 | BV90: 0 | BW90: 2 | BX90: 54.8 | BY90: 10 | CA90: 61.9
BJ91: FINDIK KÜSPESİ | BK91: 90 | BL91: 38.89 | BM91: 2.67 | BN91: 0.22 | BO91: 0.67 | BQ91: 8.89 | BR91: 19.71 | BS91: 15.92 | BT91: 6.67 | BU91: 11 | BV91: 0 | BW91: 10 | BX91: 30 | BY91: 6.11 | BZ91: 5.4 | CA91: 60
BJ92: GUAR UNU | BK92: 95 | BL92: 42 | BM92: 2.87 | BN92: 0.7 | BO92: 0.64 | BP92: 0.08 | BQ92: 12.7 | BR92: 20.7 | BT92: 5.8 | BU92: 50 | BV92: 0 | BW92: 10 | BX92: 34 | BY92: 5.3 | BZ92: 4.1 | CA92: 72
BJ93: HAŞHAŞ KÜSPESİ, PRES | BK93: 92 | BL93: 36 | BM93: 2.7 | BN93: 3.04 | BO93: 1.4 | BP93: 0.01 | BQ93: 13 | BR93: 34.1 | BS93: 23.3 | BT93: 13.9 | BU93: 12 | BV93: 0 | BW93: 10 | BX93: 40 | BY93: 10.3 | BZ93: 1.5 | CA93: 60
BJ94: HİNDİSTAN CEVİZİ KÜSPESİ, PRES | BK94: 92 | BL94: 21.5 | BM94: 2.31 | BN94: 0.21 | BO94: 0.65 | BP94: 0.04 | BQ94: 13 | BR94: 56 | BT94: 7 | BU94: 13 | BV94: 0 | BW94: 10 | BX94: 38.4 | BY94: 7.4 | BZ94: 5 | CA94: 64
BJ95: KAN UNU | BK95: 92 | BL95: 87.2 | BM95: 2.42 | BN95: 0.32 | BO95: 0.26 | BP95: 0.4 | BQ95: 1.1 | BR95: 10 | BS95: 2 | BT95: 2.5 | BU95: 70 | BV95: 0 | BW95: 2 | BX95: 74.2 | BY95: 1.2 | CA95: 59.8
BJ96: KETEN TOHUMU KÜSPESİ, PRES | BK96: 91 | BL96: 37.9 | BM96: 3 | BN96: 0.45 | BO96: 0.96 | BP96: 0.15 | BQ96: 9.6 | BR96: 25 | BS96: 19 | BT96: 6.4 | BU96: 12 | BV96: 0 | BW96: 30 | BX96: 50 | BY96: 10.2 | BZ96: 9.5 | CA96: 78
BJ97: KETEN TOHUMU KÜSPESİ,SOLVENT | BK97: 90 | BL97: 38.3 | BM97: 2.86 | BN97: 0.43 | BO97: 0.89 | BP97: 0.09 | BQ97: 10.1 | BR97: 36.1 | BS97: 22.1 | BT97: 6.5 | BU97: 12 | BV97: 0 | BW97: 30 | BX97: 45 | BY97: 1.9 | BZ97: 9.5 | CA97: 65.4
BJ98: KOLZA KÜSPESİ, PRES | BK98: 92 | BL98: 38.7 | BM98: 2.71 | BN98: 0.72 | BO98: 1.14 | BP98: 0.07 | BQ98: 13.1 | BR98: 29.8 | BS98: 20.5 | BT98: 7.4 | BU98: 13 | BV98: 0 | BW98: 30 | BX98: 31.15 | BY98: 9.7 | BZ98: 4 | CA98: 69.9
BJ99: KOLZA KÜSPESİ, SOLVENT | BK99: 91 | BL99: 40.6 | BM99: 2.68 | BN99: 0.67 | BO99: 1.04 | BP99: 0 | BQ99: 13.2 | BR99: 36 | BS99: 18 | BT99: 7.8 | BU99: 13 | BV99: 0 | BW99: 30 | BX99: 30 | BY99: 4 | BZ99: 0.5 | CA99: 74
BJ100: MISIR GLUTEN YEMİ | BK100: 90 | BL100: 25.6 | BM100: 3 | BN100: 0.36 | BO100: 0.82 | BP100: 0.13 | BQ100: 9.7 | BR100: 35.5 | BS100: 12.1 | BT100: 6.8 | BU100: 9 | BV100: 0 | BW100: 20 | BX100: 27 | BY100: 3.2 | BZ100: 18 | CA100: 74.1
BJ101: MISIR GLUTENİ, 46,8 HP | BK101: 91 | BL101: 46.8 | BM101: 3.18 | BN101: 0.16 | BO101: 0.5 | BP101: 0.1 | BQ101: 4.8 | BR101: 37 | BS101: 9 | BT101: 3.4 | BU101: 20 | BV101: 0 | BW101: 30 | BX101: 61.92 | BY101: 3.2 | BZ101: 15.8 | CA101: 84.4
BJ102: MISIR GLUTENİ, 67,2 HP | BK102: 90 | BL102: 67.2 | BM102: 3.51 | BN102: 0.08 | BO102: 0.54 | BP102: 0.05 | BQ102: 2.2 | BR102: 11.1 | BS102: 8.2 | BT102: 3.3 | BU102: 25 | BV102: 0 | BW102: 30 | BX102: 69.2 | BY102: 2.6 | BZ102: 17.91 | CA102: 84.4
BJ103: MISIR ÖZÜ KÜSPESİ,PRES | BK103: 90 | BL103: 19 | BM103: 3 | BN103: 0.09 | BO103: 0.5 | BP103: 0.04 | BQ103: 11.5 | BR103: 47.91 | BS103: 14.18 | BT103: 4.2 | BU103: 15 | BV103: 0 | BW103: 30 | BX103: 69.1 | BY103: 3.27 | BZ103: 22.1 | CA103: 74
BJ104: PALMİYE KÜSPESİ, PRES | BK104: 91.2 | BL104: 16.7 | BM104: 2.77 | BN104: 0.28 | BO104: 0.6 | BP104: 0.02 | BQ104: 19.8 | BR104: 73 | BS104: 44.8 | BT104: 4.7 | BU104: 9.5 | BV104: 0 | BW104: 10 | BX104: 42 | BY104: 5 | BZ104: 5.1 | CA104: 60
BJ105: PAMUK TOHUMU KÜSPESİ, PRES, 26 HP | BK105: 90 | BL105: 29 | BM105: 2.2 | BN105: 0.2 | BO105: 1 | BP105: 0.05 | BQ105: 23 | BR105: 38 | BS105: 28 | BT105: 7.3 | BU105: 12 | BV105: 0 | BW105: 30 | BX105: 42 | BY105: 5 | BZ105: 4 | CA105: 60
BJ106: PAMUK TOHUMU KÜSPESİ, PRES, 28 HP | BK106: 90 | BL106: 31.11 | BM106: 2.3 | BN106: 0.2 | BO106: 1 | BP106: 0.05 | BQ106: 23 | BR106: 36 | BS106: 27 | BT106: 7.3 | BU106: 13 | BV106: 0 | BW106: 30 | BX106: 42 | BY106: 5 | BZ106: 4 | CA106: 60
BJ107: PAMUK TOHUMU KÜSPESİ, PRES, 31 HP | BK107: 90 | BL107: 34 | BM107: 2.3 | BN107: 0.19 | BO107: 1 | BP107: 0.06 | BQ107: 20 | BR107: 32 | BS107: 22 | BT107: 6.9 | BU107: 13.5 | BV107: 0 | BW107: 30 | BX107: 42 | BY107: 5 | BZ107: 2.1 | CA107: 66
BJ108: PAMUK TOHUMU KÜSPESİ, PRES, 38 HP | BK108: 93 | BL108: 40.8 | BM108: 2.28 | BN108: 0.21 | BO108: 0.97 | BP108: 0.07 | BQ108: 14.3 | BR108: 30.8 | BS108: 19.9 | BT108: 6.7 | BU108: 14.5 | BV108: 0 | BW108: 30 | BX108: 42 | BY108: 5 | BZ108: 4.8 | CA108: 73
BJ109: PAMUK TOHUMU KÜSPESİ, PRES, 41 HP | BK109: 93 | BL109: 44.3 | BM109: 2.71 | BN109: 0.21 | BO109: 1.16 | BP109: 0.07 | BQ109: 12.8 | BR109: 28 | BS109: 20 | BT109: 6.6 | BU109: 15 | BV109: 0 | BW109: 30 | BX109: 42 | BY109: 5 | BZ109: 4 | CA109: 80
BJ110: PAMUK TOHUMU KÜSPESİ, SOLVENT, 32 HP | BK110: 92 | BL110: 35 | BM110: 2.51 | BN110: 0.18 | BO110: 1.2 | BP110: 0.06 | BQ110: 16 | BR110: 32 | BS110: 22 | BT110: 6.9 | BU110: 13.5 | BV110: 0 | BW110: 30 | BX110: 40 | BY110: 1.8 | BZ110: 2.1 | CA110: 63
BJ111: PAMUK TOHUMU KÜSPESİ, SOLVENT, 35 HP | BK111: 91 | BL111: 39 | BM111: 2.59 | BN111: 0.22 | BO111: 1.21 | BP111: 0.07 | BQ111: 14.1 | BR111: 30.8 | BS111: 19.9 | BT111: 6.7 | BU111: 14 | BV111: 0 | BW111: 30 | BX111: 40 | BY111: 1.8 | BZ111: 2.1 | CA111: 65
BJ112: PAMUK TOHUMU KÜSPESİ, SOLVENT, 41 HP | BK112: 91 | BL112: 45.2 | BM112: 2.57 | BN112: 0.18 | BO112: 1.21 | BP112: 0.07 | BQ112: 13.3 | BR112: 26 | BS112: 20.2 | BT112: 7.1 | BU112: 15 | BV112: 0 | BW112: 30 | BX112: 40 | BY112: 1.8 | BZ112: 4.8 | CA112: 66.4
BJ113: PEYNİR ALTI SUYU TOZU | BK113: 93 | BL113: 14.2 | BM113: 3.03 | BN113: 0.92 | BO113: 0.82 | BP113: 0.66 | BQ113: 0.2 | BR113: 0.3 | BS113: 0.2 | BT113: 9.4 | BU113: 70 | BV113: 0 | BW113: 2 | BX113: 5.3 | BY113: 1 | CA113: 81
BJ114: PEYNİR ALTI SUYU TOZU, DÜŞÜK LAKTOZLU | BK114: 93 | BL114: 17.9 | BM114: 2.7 | BN114: 1.6 | BO114: 1.18 | BP114: 1.54 | BQ114: 0.2 | BR114: 0 | BS114: 0 | BT114: 16.8 | BU114: 70 | BV114: 0 | BW114: 2 | BX114: 5.3 | BY114: 1 | CA114: 81
BJ115: SOYA KÜSPESİ, SOLVENT, 44 HP | BK115: 91 | BL115: 46.8 | BM115: 3 | BN115: 0.32 | BO115: 0.71 | BP115: 0.04 | BQ115: 7 | BR115: 20 | BS115: 15 | BT115: 6.6 | BU115: 17 | BV115: 0 | BW115: 40 | BX115: 35 | BY115: 1.6 | BZ115: 6 | CA115: 78
BJ116: SOYA KÜSPESİ, SOLVENT, 48 HP | BK116: 91 | BL116: 51.06 | BM116: 3.31 | BN116: 0.3 | BO116: 0.7 | BP116: 0.04 | BQ116: 4.7 | BR116: 14.9 | BS116: 10 | BT116: 6.6 | BU116: 18 | BV116: 0 | BW116: 40 | BX116: 35 | BY116: 1.2 | BZ116: 6 | CA116: 80
BJ117: SOYA KÜSPESİ, SOLVENT, 49 HP | BK117: 90 | BL117: 53.9 | BM117: 3.41 | BN117: 0.28 | BO117: 0.7 | BP117: 0.03 | BQ117: 4.1 | BR117: 9.8 | BS117: 6.2 | BT117: 6.4 | BU117: 19 | BV117: 0 | BW117: 40 | BX117: 36.7 | BY117: 1.2 | BZ117: 6 | CA117: 81
BJ118: SOYA KÜSPESİ,PRES, 45 HP | BK118: 90 | BL118: 46.3 | BM118: 3.61 | BN118: 0.29 | BO118: 0.68 | BP118: 0.04 | BQ118: 6.7 | BR118: 21.7 | BS118: 10.4 | BT118: 5.5 | BU118: 18 | BV118: 0 | BW118: 40 | BX118: 63.5 | BY118: 7.7 | BZ118: 2 | CA118: 88.5
BJ119: SOYA KÜSPESİ, SOLVENT, 46 HP | BK119: 91 | BL119: 48.93 | BM119: 3.21 | BN119: 0.3 | BO119: 0.7 | BP119: 0.04 | BQ119: 4.7 | BR119: 15.2 | BS119: 10.5 | BT119: 6.6 | BU119: 18 | BV119: 0 | BW119: 40 | BX119: 35 | BY119: 1.2 | BZ119: 6 | CA119: 80
BJ120: SOYA TOHUM KABUKLARI | BK120: 91 | BL120: 12.1 | BM120: 2.34 | BN120: 0.22 | BO120: 0.47 | BP120: 0.12 | BQ120: 40.1 | BR120: 60.3 | BS120: 44.6 | BT120: 4.8 | BU120: 6 | BV120: 0 | BW120: 10 | BX120: 28 | BY120: 2.1 | BZ120: 5.5 | CA120: 67.3
BJ121: SOYA,TAM YAĞLI,İŞLENMİŞ | BK121: 92 | BL121: 42.8 | BM121: 3.8 | BN121: 0.27 | BO121: 0.65 | BP121: 0.01 | BQ121: 5.8 | BR121: 22.1 | BS121: 14.7 | BT121: 5 | BU121: 18 | BV121: 0 | BW121: 10 | BX121: 48 | BY121: 18.8 | BZ121: 1.3 | CA121: 98.8
BJ122: SUSAM KÜSPESİ, PRES | BK122: 92.9 | BL122: 44.4 | BM122: 2.96 | BN122: 1.98 | BO122: 1.27 | BP122: 0.01 | BQ122: 7.8 | BR122: 21.3 | BS122: 10.2 | BT122: 12.4 | BU122: 12 | BV122: 0 | BW122: 10 | BX122: 40 | BY122: 11.1 | BZ122: 1.8 | CA122: 88
BJ123: SUSAM KÜSPESİ, SOLVENT | BK123: 93.7 | BL123: 48.5 | BM123: 2.21 | BN123: 0.91 | BO123: 0.46 | BP123: 0.01 | BQ123: 10.1 | BR123: 45.5 | BS123: 18.4 | BT123: 12.6 | BU123: 12 | BV123: 0 | BW123: 10 | BX123: 30 | BY123: 2.6 | BZ123: 1.8 | CA123: 77
BJ124: SÜT TOZU | BK124: 94 | BL124: 25.4 | BM124: 5.37 | BN124: 1 | BO124: 0.75 | BP124: 0.4 | BQ124: 0 | BR124: 0 | BS124: 0 | BT124: 6.3 | BU124: 80 | BV124: 0 | BW124: 2 | BX124: 0 | BY124: 27 | CA124: 119
BJ125: SÜT TOZU,YAĞSIZ | BK125: 94 | BL125: 35.4 | BM125: 3.51 | BN125: 1.36 | BO125: 1.09 | BP125: 0.55 | BQ125: 0.2 | BR125: 0 | BS125: 0 | BT125: 6.9 | BU125: 75 | BV125: 0 | BW125: 2 | BX125: 0 | BY125: 1 | CA125: 85
BJ126: ÜRE | BK126: 99 | BL126: 281 | BM126: 0 | BN126: 0 | BO126: 0 | BP126: 0 | BQ126: 0 | BR126: 0 | BS126: 0 | BT126: 0 | BU126: 17 | BV126: 0 | BW126: 1 | BX126: 0
BJ127: ÜRE, OPTIGEN II | BK127: 99 | BL127: 256 | BM127: 0 | BN127: 0 | BO127: 0 | BP127: 0 | BQ127: 0 | BR127: 0 | BS127: 0 | BT127: 0 | BU127: 150 | BV127: 0 | BW127: 1 | BX127: 0
BJ128: YERFISTIĞI İÇ KABUKLARI | BK128: 92 | BL128: 17 | BM128: 2.37 | BN128: 0.19 | BO128: 0.2 | BP128: 0.01 | BQ128: 13 | BR128: 28 | BS128: 20 | BT128: 3 | BU128: 5 | BV128: 0 | BW128: 10 | BX128: 30 | BY128: 22 | CA128: 66
BJ129: YERFISTIĞI KÜSPESİ, PRES | BK129: 93 | BL129: 49 | BM129: 3.3 | BN129: 0.12 | BO129: 0.61 | BP129: 0.13 | BQ129: 7.5 | BR129: 14.2 | BS129: 9.4 | BT129: 5.4 | BU129: 12 | BV129: 0 | BW129: 20 | BX129: 27 | BY129: 10.1 | BZ129: 8 | CA129: 80
BJ130: YERFISTIĞI KÜSPESİ, SOLVENT | BK130: 92 | BL130: 52.3 | BM130: 2.78 | BN130: 0.29 | BO130: 0.68 | BP130: 0.03 | BQ130: 10.8 | BR130: 21.4 | BS130: 13.5 | BT130: 5.8 | BU130: 12 | BV130: 0 | BW130: 20 | BX130: 20 | BY130: 2.5 | BZ130: 8 | CA130: 74.8
BJ131: YONCA UNU, %15 | BK131: 90 | BL131: 17.3 | BM131: 2.06 | BN131: 1.37 | BO131: 0.24 | BP131: 0.08 | BQ131: 29.4 | BR131: 55.4 | BS131: 37.5 | BT131: 9.9 | BU131: 10 | BV131: 0 | BW131: 20 | BX131: 36.25 | BY131: 2.3 | BZ131: 3 | CA131: 52
BJ132: YONCA UNU, %17 | BK132: 92 | BL132: 18.9 | BM132: 2.17 | BN132: 1.52 | BO132: 0.25 | BP132: 0.1 | BQ132: 26.2 | BR132: 45 | BS132: 34.3 | BT132: 11 | BU132: 10 | BV132: 0 | BW132: 20 | BX132: 36.25 | BY132: 3 | BZ132: 3 | CA132: 56
BJ133: YOSUN UNU | BK133: 92.5 | BL133: 7 | BM133: 1.2 | BN133: 1.41 | BO133: 0.29 | BP133: 3.65 | BQ133: 8 | BR133: 19.9 | BS133: 12.6 | BT133: 32 | BU133: 95 | BV133: 0 | BW133: 10 | BX133: 20 | BY133: 0.6 | CA133: 32
BJ134: YUMURTA UNU | BK134: 96 | BL134: 49 | BM134: =(1.49/$BK134)*100 -> 1.552083333 | BN134: =(0.05/$BK134)*100 -> 0.05208333333 | BO134: =(0.18/$BK134)*100 -> 0.1875 | BP134: =(0.13/$BK134)*100 -> 0.1354166667 | BQ134: 0 | BT134: 3.8 | BU134: 500 | BV134: 0 | BW134: 10 | BY134: 41 | CA134: 130
BJ155: VİTAMİN-MİNERAL, KATKILAR | BK155: KM, % | BL155: HP, % | BM155: ME, Mcal/kg | BN155: Ca, % | BO155: P, % | BP155: Na,% | BQ155: HS, % | BR155: NDF,% | BS155: ADF,% | BT155: HK, % | BU155: Fiyat,TL | BV155: Enaz | BW155: Ençok | BX155: RUP,%HP'de | BY155: HY, % | BZ155: Nişasta,% | CA155: TSBM,%
BJ156: AMONYUM SÜLFAT | BK156: 100 | BL156: 134.1 | BM156: 0 | BN156: 0 | BO156: 0 | BP156: 0 | BQ156: 0 | BR156: 0 | BS156: 0 | BT156: 33 | BU156: 9 | BV156: 0 | BW156: 0.3 | BX156: 0
BJ157: DİKALSİYUM FOSFAT (DCP) | BK157: 100 | BL157: 0 | BM157: 0 | BN157: 24 | BO157: 18 | BP157: 0.03 | BQ157: 0 | BR157: 0 | BS157: 0 | BT157: 100 | BU157: 35 | BV157: 0 | BW157: 3 | BX157: 0
BJ158: KALSİYUM KARBONAT | BK158: 100 | BL158: 0 | BM158: 0 | BN158: 39 | BO158: 0.04 | BP158: 0.06 | BQ158: 0 | BR158: 0 | BS158: 0 | BT158: 100 | BU158: 2 | BV158: 0 | BW158: 2 | BX158: 0
BJ159: KAYA FOSFATI | BK159: 100 | BL159: 0 | BM159: 0 | BN159: 35 | BO159: 13 | BP159: 0.03 | BQ159: 0 | BR159: 0 | BS159: 0 | BT159: 100 | BU159: 11 | BV159: 0 | BW159: 2 | BX159: 0
BJ160: KAYA FOSFATI, DÜŞÜK FLORLU | BK160: 100 | BL160: 0 | BM160: 0 | BN160: 35 | BO160: 14 | BP160: 4.5 | BQ160: 0 | BR160: 0 | BS160: 0 | BT160: 100 | BU160: 11 | BV160: 0 | BW160: 2 | BX160: 0
BJ161: KEMİK UNU | BK161: 96 | BL161: 12 | BM161: 0 | BN161: 24 | BO161: 12 | BP161: 5.69 | BQ161: 0 | BR161: 0 | BS161: 0 | BT161: 79.3 | BU161: 75 | BV161: 0 | BW161: 3 | BX161: 0 | BY161: 3.3 | CA161: 16
BJ162: KİREÇTAŞI | BK162: 100 | BL162: 0 | BM162: 0 | BN162: 35 | BO162: 0 | BP162: 0.06 | BQ162: 0 | BR162: 0 | BS162: 0 | BT162: 100 | BU162: 2 | BV162: 0 | BW162: 7 | BX162: 0
BJ163: MERMER TOZU | BK163: 100 | BL163: 0 | BM163: 0 | BN163: 37 | BO163: 0 | BP163: 0 | BQ163: 0 | BR163: 0 | BS163: 0 | BT163: 100 | BU163: 2 | BV163: 0 | BW163: 7 | BX163: 0
BJ164: SODYUM BİKARBONAT | BK164: 100 | BL164: 0 | BM164: 0 | BN164: 0 | BO164: 0 | BP164: 27 | BQ164: 0 | BR164: 0 | BS164: 0 | BT164: 100 | BU164: 13.5 | BV164: 0 | BW164: 0.2 | BX164: 0
BJ165: SODYUM KARBONAT,1 sulu | BK165: 100 | BL165: 0 | BM165: 0 | BN165: 0 | BO165: 0 | BP165: 36.5 | BQ165: 0 | BR165: 0 | BS165: 0 | BT165: 100 | BU165: 13.5 | BV165: 0 | BW165: 0.2 | BX165: 0
BJ166: TUZ | BK166: 100 | BL166: 0 | BM166: 0 | BN166: 0 | BO166: 0 | BP166: 39.34 | BQ166: 0 | BR166: 0 | BS166: 0 | BT166: 100 | BU166: 1.5 | BV166: 0.25 | BW166: 1 | BX166: 0
BJ167: VİTAMİN-MİNERAL KARMASI | BK167: 100 | BL167: 0 | BM167: 0 | BN167: 0 | BO167: 0 | BP167: 0 | BQ167: 0 | BR167: 0 | BS167: 0 | BT167: 0 | BU167: 25 | BV167: 0.25 | BW167: 0.35 | BX167: 0
BJ168: YUMURTA KABUĞU | BK168: 99.66 | BL168: 4 | BN168: 33.63 | BO168: 0.06 | BP168: 0.05 | BT168: 94.45 | BU168: 70 | BV168: 0 | BW168: 1 | BY168: 0.22
